Department Family,Entity,Date Paid,Expense Type,Expense Area,Supplier,Transaction Number,Amount (�),Supplier VAT Registration Number
BEIS,Met Office,05/01/2021,06 ACCOMMODATION,CHIEF FINANCIAL OFFICER,D&G OFFICE SERVICES LTD,450596,284.38,272997547
BEIS,Met Office,05/01/2021,06 ACCOMMODATION,CHIEF FINANCIAL OFFICER,D&G OFFICE SERVICES LTD,450596,284.37,272997547
BEIS,Met Office,05/01/2021,06 ACCOMMODATION,CHIEF FINANCIAL OFFICER,D&G OFFICE SERVICES LTD,450596,284.38,272997547
BEIS,Met Office,05/01/2021,06 ACCOMMODATION,CHIEF FINANCIAL OFFICER,D&G OFFICE SERVICES LTD,450596,173.27,888805068
BEIS,Met Office,05/01/2021,11 SERVICES,CHIEF FINANCIAL OFFICER,DIGITAL COMMUNICATIONS SYSTEMS LIMITED,450612,4086.85,GB 556 1971 19
BEIS,Met Office,05/01/2021,06 ACCOMMODATION,CHIEF FINANCIAL OFFICER,GOVERNMENT PROPERTY AGENCY,449687,3285.18,-
BEIS,Met Office,05/01/2021,06 ACCOMMODATION,CHIEF FINANCIAL OFFICER,GRS BUILDING SERVICES SOUTH-WEST,450577,685,-
BEIS,Met Office,05/01/2021,06 ACCOMMODATION,CHIEF FINANCIAL OFFICER,GRS BUILDING SERVICES SOUTH-WEST,450578,0,321828666
BEIS,Met Office,05/01/2021,11 SERVICES,CHIEF FINANCIAL OFFICER,ST JOHN AMBULANCE,450609,88.35,975081008
BEIS,Met Office,05/01/2021,11 SERVICES,CHIEF FINANCIAL OFFICER,VIRGIN MEDIA BUSINESS,450544,152.53,BG745963883
BEIS,Met Office,05/01/2021,12 INTERNATIONAL,MARKETS,APPLIED SATELLITE TECHNOLOGY SYSTEMS LTD,450512,310.22,720108683
BEIS,Met Office,05/01/2021,04 CONTRACTORS,MARKETS,HAYS SPECIALIST RECRUITMENT LTD,450552,533.72,773695871
BEIS,Met Office,05/01/2021,11 SERVICES,MARKETS,ROWE IT LTD,450599,12000,924964394
BEIS,Met Office,05/01/2021,11 SERVICES,MARKETS,ROWE IT LTD,450605,3788.75,924964394
BEIS,Met Office,05/01/2021,11 SERVICES,MARKETS,ROWE IT LTD,450605,3500,924964394
BEIS,Met Office,05/01/2021,11 SERVICES,MARKETS,ROWE IT LTD,450605,4340,924964394
BEIS,Met Office,05/01/2021,11 SERVICES,MARKETS,ROWE IT LTD,450605,25080,924964394
BEIS,Met Office,05/01/2021,11 SERVICES,MARKETS,ROWE IT LTD,450606,35815,924964394
BEIS,Met Office,05/01/2021,11 SERVICES,MARKETS,ROWE IT LTD,450607,68850,924964394
BEIS,Met Office,05/01/2021,04 CONTRACTORS,OFFICE OF THE CEO,QUINTON DAVIES LIMITED,450569,500,-
BEIS,Met Office,05/01/2021,04 CONTRACTORS,PEOPLE,HAYS SPECIALIST RECRUITMENT LTD,450550,366.16,773695871
BEIS,Met Office,05/01/2021,04 CONTRACTORS,PEOPLE,HAYS SPECIALIST RECRUITMENT LTD,450553,292.92,773695871
BEIS,Met Office,05/01/2021,04 CONTRACTORS,PEOPLE,HAYS SPECIALIST RECRUITMENT LTD,450554,415.25,773695871
BEIS,Met Office,05/01/2021,04 CONTRACTORS,PEOPLE,HAYS SPECIALIST RECRUITMENT LTD,450556,488.21,773695871
BEIS,Met Office,05/01/2021,04 CONTRACTORS,PEOPLE,HAYS SPECIALIST RECRUITMENT LTD,450557,427.18,773695871
BEIS,Met Office,05/01/2021,04 CONTRACTORS,PEOPLE,HAYS SPECIALIST RECRUITMENT LTD,450558,585.84,773695871
BEIS,Met Office,05/01/2021,04 CONTRACTORS,PEOPLE,WA CONSULTANTS LTD,449967,3624.88,876328977
BEIS,Met Office,05/01/2021,11 SERVICES,PROGRAMMES,Esri (Uk) Ltd,450613,2392.77,PT511283733
BEIS,Met Office,05/01/2021,04 CONTRACTORS,PROGRAMMES,JOBSEEKERS RECRUITMENT SERVICES LTD,450564,355.26,130 1297 14
BEIS,Met Office,05/01/2021,04 CONTRACTORS,PROGRAMMES,REED,450594,3600,835515525
BEIS,Met Office,05/01/2021,04 CONTRACTORS,PROGRAMMES,REED,450594,7711.2,835515525
BEIS,Met Office,05/01/2021,04 CONTRACTORS,PROGRAMMES,ROWE IT LTD,450601,3937.5,924964394
BEIS,Met Office,05/01/2021,11 SERVICES,PROGRAMMES,University College London,446876,53640.54,524371168
BEIS,Met Office,05/01/2021,11 SERVICES,PROGRAMMES,University College London,450545,-58720.54,524371168
BEIS,Met Office,05/01/2021,11 SERVICES,PROGRAMMES,University College London,450546,0,214222124
BEIS,Met Office,05/01/2021,04 CONTRACTORS,PROGRAMMES,WA CONSULTANTS LTD,449967,8477.05,876328977
BEIS,Met Office,05/01/2021,11 SERVICES,SERVICES,APPLIED SATELLITE TECHNOLOGY SYSTEMS LTD,450511,32,720108683
BEIS,Met Office,05/01/2021,03 STAFF COSTS T&S,SERVICES,CHARLIE'S TRAVEL LTD,450616,762,783848277
BEIS,Met Office,05/01/2021,03 STAFF COSTS T&S,SERVICES,CHARLIE'S TRAVEL LTD,450616,2192.16,978187168
BEIS,Met Office,05/01/2021,13 MISCELLANEOUS,SERVICES,DHL GLOBAL FORWARDING (UK) LTD,450273,2118.48,745260438
BEIS,Met Office,05/01/2021,11 SERVICES,TECHNOLOGY AND CIO,CLOUDREACH EUROPE LIMITED,450524,7110,978187168
BEIS,Met Office,05/01/2021,08 SOFTWARE LICENCES,TECHNOLOGY AND CIO,COMPUTACENTER (UK) LTD,450525,27974.72,490334648
BEIS,Met Office,05/01/2021,08 SOFTWARE LICENCES,TECHNOLOGY AND CIO,COMPUTACENTER (UK) LTD,450561,16899.64,490334648
BEIS,Met Office,05/01/2021,08 SOFTWARE LICENCES,TECHNOLOGY AND CIO,COMPUTACENTER (UK) LTD,450562,1786.44,490334648
BEIS,Met Office,05/01/2021,INFORMATION TECHNOLOGY,TECHNOLOGY AND CIO,COMPUTACENTER (UK) LTD,450563,2977.4,490334648
BEIS,Met Office,05/01/2021,INFORMATION TECHNOLOGY,TECHNOLOGY AND CIO,COMPUTACENTER (UK) LTD,450563,26066.32,490334648
BEIS,Met Office,05/01/2021,10 EQUIPMENT MAINTENANCE,TECHNOLOGY AND CIO,COMPUTACENTER (UK) LTD,450570,19830.99,490334648
BEIS,Met Office,05/01/2021,10 EQUIPMENT MAINTENANCE,TECHNOLOGY AND CIO,COMPUTACENTER (UK) LTD,450593,3557.64,490334648
BEIS,Met Office,05/01/2021,08 SOFTWARE LICENCES,TECHNOLOGY AND CIO,GOOGLE IRELAND LTD,450576,18348.52,-
BEIS,Met Office,05/01/2021,04 CONTRACTORS,TECHNOLOGY AND CIO,HAYS SPECIALIST RECRUITMENT LTD,450555,543.12,773695871
BEIS,Met Office,05/01/2021,08 SOFTWARE LICENCES,TECHNOLOGY AND CIO,IBM UNITED KINGDOM LTD,450560,5458.32,107328000
BEIS,Met Office,05/01/2021,04 CONTRACTORS,TECHNOLOGY AND CIO,REED,450594,6880.5,835515525
BEIS,Met Office,05/01/2021,04 CONTRACTORS,TECHNOLOGY AND CIO,REED,450594,5511.6,835515525
BEIS,Met Office,05/01/2021,04 CONTRACTORS,TECHNOLOGY AND CIO,REED,450594,7105.5,835515525
BEIS,Met Office,05/01/2021,04 CONTRACTORS,TECHNOLOGY AND CIO,REED,450594,1965,397000555
BEIS,Met Office,05/01/2021,08 SOFTWARE LICENCES,TECHNOLOGY AND CIO,SOFTWAREONE,450535,3387.6,GB 942 5301 43
BEIS,Met Office,05/01/2021,11 SERVICES,TECHNOLOGY AND CIO,UKCLOUD LTD,450547,1000,GB287461957
BEIS,Met Office,05/01/2021,11 SERVICES,TECHNOLOGY AND CIO,WIREFAST LTD,450541,6197.06,749536001
BEIS,Met Office,05/01/2021,11 SERVICES,TECHNOLOGY AND CIO,WIREFAST LTD,450542,21.85,991280207
BEIS,Met Office,06/01/2021,13 MISCELLANEOUS,CHIEF FINANCIAL OFFICER,DEMSTAR BUSINESS SOLUTIONS LTD,22202,416.95,-
BEIS,Met Office,06/01/2021,08 SOFTWARE LICENCES,TECHNOLOGY AND CIO,GITHUB INC,10076,28931.78,-
BEIS,Met Office,06/01/2021,08 SOFTWARE LICENCES,TECHNOLOGY AND CIO,GITHUB INC,10076,226.03,-
BEIS,Met Office,06/01/2021,08 SOFTWARE LICENCES,TECHNOLOGY AND CIO,GITHUB INC,10076,30.34,6388047V
BEIS,Met Office,07/01/2021,11 SERVICES,CHIEF FINANCIAL OFFICER,ADAM PHONES LTD,450510,1250,115036848
BEIS,Met Office,07/01/2021,06 ACCOMMODATION,CHIEF FINANCIAL OFFICER,AY UK Ltd Client A/C re SMAA Developments Ltd,450654,-1005.04,GB641407169
BEIS,Met Office,07/01/2021,13 MISCELLANEOUS,CHIEF FINANCIAL OFFICER,BANNER GROUP LIMITED,450515,6.37,GB391085740
BEIS,Met Office,07/01/2021,13 MISCELLANEOUS,CHIEF FINANCIAL OFFICER,BANNER GROUP LIMITED,450516,716.09,GB391085740
BEIS,Met Office,07/01/2021,06 ACCOMMODATION,CHIEF FINANCIAL OFFICER,BANNER GROUP LIMITED,450585,6.52,GB391085740
BEIS,Met Office,07/01/2021,06 ACCOMMODATION,CHIEF FINANCIAL OFFICER,Biffa Waste Services Ltd,450518,262.47,537911627
BEIS,Met Office,07/01/2021,06 ACCOMMODATION,CHIEF FINANCIAL OFFICER,Biffa Waste Services Ltd,450539,105,537911627
BEIS,Met Office,07/01/2021,06 ACCOMMODATION,CHIEF FINANCIAL OFFICER,Biffa Waste Services Ltd,450603,24125,613295452
BEIS,Met Office,07/01/2021,11 SERVICES,CHIEF FINANCIAL OFFICER,BT GLOBAL SERVICES,450519,15946.63,245719348
BEIS,Met Office,07/01/2021,11 SERVICES,CHIEF FINANCIAL OFFICER,BT PLC,450520,12672.23,245719348
BEIS,Met Office,07/01/2021,06 ACCOMMODATION,CHIEF FINANCIAL OFFICER,CANON UK LTD,450523,1713.61,523797128
BEIS,Met Office,07/01/2021,13 MISCELLANEOUS,CHIEF FINANCIAL OFFICER,CANON UK LTD,450614,579.53,523797128
BEIS,Met Office,07/01/2021,13 MISCELLANEOUS,CHIEF FINANCIAL OFFICER,CANON UK LTD,450615,2470,864497378
BEIS,Met Office,07/01/2021,06 ACCOMMODATION,CHIEF FINANCIAL OFFICER,CARDIFF EXECUTIVE CENTRE LTD,450575,11.16,864497378
BEIS,Met Office,07/01/2021,13 MISCELLANEOUS,CHIEF FINANCIAL OFFICER,CARDIFF EXECUTIVE CENTRE LTD,450592,2470,864497378
BEIS,Met Office,07/01/2021,06 ACCOMMODATION,CHIEF FINANCIAL OFFICER,CORONA ENERGY LTD,450527,17933.72,577704800
BEIS,Met Office,07/01/2021,03 STAFF COSTS T&S,CHIEF FINANCIAL OFFICER,ENTERPRISE RENT A CAR UK LTD,450572,490.62,215557314
BEIS,Met Office,07/01/2021,03 STAFF COSTS T&S,CHIEF FINANCIAL OFFICER,ENTERPRISE RENT A CAR UK LTD,450573,282.68,215557314
BEIS,Met Office,07/01/2021,03 STAFF COSTS T&S,CHIEF FINANCIAL OFFICER,ENTERPRISE RENT A CAR UK LTD,450748,478.71,215557314
BEIS,Met Office,07/01/2021,03 STAFF COSTS T&S,CHIEF FINANCIAL OFFICER,ENTERPRISE RENT A CAR UK LTD,450761,196.69,215557314
BEIS,Met Office,07/01/2021,03 STAFF COSTS T&S,CHIEF FINANCIAL OFFICER,ENTERPRISE RENT A CAR UK LTD,450762,423.64,215557314
BEIS,Met Office,07/01/2021,03 STAFF COSTS T&S,CHIEF FINANCIAL OFFICER,ENTERPRISE RENT A CAR UK LTD,450763,576.55,215557314
BEIS,Met Office,07/01/2021,03 STAFF COSTS T&S,CHIEF FINANCIAL OFFICER,ENTERPRISE RENT A CAR UK LTD,450765,275.24,215557314
BEIS,Met Office,07/01/2021,13 MISCELLANEOUS,CHIEF FINANCIAL OFFICER,GALLAGHER RISK & REWARD LTD,450725,413.1,823820344
BEIS,Met Office,07/01/2021,11 SERVICES,CHIEF FINANCIAL OFFICER,GIBRALTAR NYNEX COMMUNICATIONS LTD,450537,694,NOVAT
BEIS,Met Office,07/01/2021,11 SERVICES,CHIEF FINANCIAL OFFICER,GIBRALTAR NYNEX COMMUNICATIONS LTD,450538,702,NOVAT
BEIS,Met Office,07/01/2021,11 SERVICES,CHIEF FINANCIAL OFFICER,LICENCE BUREAU LTD,450724,37.47,28841308
BEIS,Met Office,07/01/2021,11 SERVICES,CHIEF FINANCIAL OFFICER,MANX TELECOM LTD,450584,6470,759751578
BEIS,Met Office,07/01/2021,11 SERVICES,CHIEF FINANCIAL OFFICER,MITIE SECURITY LTD,450565,20526.35,416706654
BEIS,Met Office,07/01/2021,11 SERVICES,CHIEF FINANCIAL OFFICER,MITIE SECURITY LTD,450566,43.8,416706654
BEIS,Met Office,07/01/2021,04 CONTRACTORS,CHIEF FINANCIAL OFFICER,QUALSERV CONSULTING LTD,450710,12350,719067718
BEIS,Met Office,07/01/2021,06 ACCOMMODATION,CHIEF FINANCIAL OFFICER,REDACTED PERSONAL DATA,450579,3894.12,N/A
BEIS,Met Office,07/01/2021,06 ACCOMMODATION,CHIEF FINANCIAL OFFICER,REDACTED PERSONAL DATA,450655,600,655585009
BEIS,Met Office,07/01/2021,11 SERVICES,CHIEF FINANCIAL OFFICER,Reuters Ltd,450595,10365,875299075
BEIS,Met Office,07/01/2021,06 ACCOMMODATION,CHIEF FINANCIAL OFFICER,SADDLES & PADDLES EXETER LTD,450590,2681.21,722887607
BEIS,Met Office,07/01/2021,06 ACCOMMODATION,CHIEF FINANCIAL OFFICER,SELECTA UK LTD,450580,7000,291146560
BEIS,Met Office,07/01/2021,06 ACCOMMODATION,CHIEF FINANCIAL OFFICER,SHETLAND CLEANING SERVICES,450582,725.48,430028404
BEIS,Met Office,07/01/2021,06 ACCOMMODATION,CHIEF FINANCIAL OFFICER,SOUTH WEST WATER LTD,450583,24.7,236873674
BEIS,Met Office,07/01/2021,FIXTURE & FITTINGS,CHIEF FINANCIAL OFFICER,TECHNICAL MATERIALS COMPANY LIMITED,450704,-551.44,778603785
BEIS,Met Office,07/01/2021,06 ACCOMMODATION,CHIEF FINANCIAL OFFICER,THE CLEANING CREW COMPANY,450548,303.86,343579772
BEIS,Met Office,07/01/2021,06 ACCOMMODATION,CHIEF FINANCIAL OFFICER,THE CLEANING CREW COMPANY,450549,622.61,GB 109 939 440
BEIS,Met Office,07/01/2021,11 SERVICES,CHIEF FINANCIAL OFFICER,WEBEX COMMUNICATIONS UK LTD,450543,350,-
BEIS,Met Office,07/01/2021,06 ACCOMMODATION,CHIEF FINANCIAL OFFICER,XEIAD,450708,0.11,599016994
BEIS,Met Office,07/01/2021,11 SERVICES,CHIEF FINANCIAL OFFICER,XPEDITE SYSTEMS (UK) LTD,450540,113540,828197985
BEIS,Met Office,07/01/2021,11 SERVICES,MARKETS,ADOPSTAR,450617,1324.28,611853162
BEIS,Met Office,07/01/2021,11 SERVICES,MARKETS,AECOM INFRASTRUCTURE & ENVIRONMENT UK LTD,450723,320,-
BEIS,Met Office,07/01/2021,11 SERVICES,MARKETS,APM GEO LTD,450721,9989.61,720108683
BEIS,Met Office,07/01/2021,05 CONSULTANTS,MARKETS,EARTH WIND FIRE AND WATER,450627,28597.92,NOTVATREG
BEIS,Met Office,07/01/2021,04 CONTRACTORS,MARKETS,HAYS SPECIALIST RECRUITMENT LTD,450672,339.75,773695871
BEIS,Met Office,07/01/2021,11 SERVICES,OFFICE OF THE CEO,KPMG LLP,450625,70652.5,634509735
BEIS,Met Office,07/01/2021,04 CONTRACTORS,OFFICE OF THE CS & TECH,HAYS SPECIALIST RECRUITMENT LTD,450662,573.8,773695871
BEIS,Met Office,07/01/2021,04 CONTRACTORS,OFFICE OF THE CS & TECH,HAYS SPECIALIST RECRUITMENT LTD,450669,634.67,773695871
BEIS,Met Office,07/01/2021,11 SERVICES,PEOPLE,HAWK INCENTIVES LTD,450745,1085.75,238839422
BEIS,Met Office,07/01/2021,11 SERVICES,PEOPLE,HAWK INCENTIVES LTD,450745,-30,238839422
BEIS,Met Office,07/01/2021,04 CONTRACTORS,PEOPLE,HAYS SPECIALIST RECRUITMENT LTD,450659,658.25,773695871
BEIS,Met Office,07/01/2021,04 CONTRACTORS,PEOPLE,HAYS SPECIALIST RECRUITMENT LTD,450660,558.71,773695871
BEIS,Met Office,07/01/2021,04 CONTRACTORS,PEOPLE,HAYS SPECIALIST RECRUITMENT LTD,450664,915.4,773695871
BEIS,Met Office,07/01/2021,04 CONTRACTORS,PEOPLE,HAYS SPECIALIST RECRUITMENT LTD,450665,658.25,773695871
BEIS,Met Office,07/01/2021,04 CONTRACTORS,PEOPLE,HAYS SPECIALIST RECRUITMENT LTD,450666,498.3,773695871
BEIS,Met Office,07/01/2021,04 CONTRACTORS,PEOPLE,HAYS SPECIALIST RECRUITMENT LTD,450670,585.84,773695871
BEIS,Met Office,07/01/2021,04 CONTRACTORS,PEOPLE,HAYS SPECIALIST RECRUITMENT LTD,450671,366.16,773695871
BEIS,Met Office,07/01/2021,11 SERVICES,PEOPLE,SWANTECH LOGISTICS LTD,450630,4644,499309492
BEIS,Met Office,07/01/2021,05 CONSULTANTS,PROGRAMMES,CMC PARTNERSHIP CONSULTANCY LTD,450734,13230,305803330
BEIS,Met Office,07/01/2021,11 SERVICES,PROGRAMMES,HOGAN LOVELLS INTERNATIONAL LLP,450722,40794.69,GB123371543
BEIS,Met Office,07/01/2021,11 SERVICES,PROGRAMMES,HOGAN LOVELLS INTERNATIONAL LLP,450722,161427.27,GB123371543
BEIS,Met Office,07/01/2021,11 SERVICES,PROGRAMMES,HOGAN LOVELLS INTERNATIONAL LLP,450722,34100,GB123371543
BEIS,Met Office,07/01/2021,11 SERVICES,PROGRAMMES,HOGAN LOVELLS INTERNATIONAL LLP,450722,720,-
BEIS,Met Office,07/01/2021,11 SERVICES,PROGRAMMES,UNIVERSITY OF CAMBRIDGE,450730,1000,595183505
BEIS,Met Office,07/01/2021,04 CONTRACTORS,PROGRAMMES,WA CONSULTANTS LTD,450744,10326.88,876328977
BEIS,Met Office,07/01/2021,07 EQUIPMENT,SCIENCE,JONATHAN LONG HPT SERVICES LTD,450658,368.45,223283628
BEIS,Met Office,07/01/2021,03 STAFF COSTS T&S,SERVICES,AIRPORT CAR RENTALS LTD,450726,320,-
BEIS,Met Office,07/01/2021,07 EQUIPMENT,SERVICES,Campbell Scientific Ltd,450567,394.2,428453933
BEIS,Met Office,07/01/2021,07 EQUIPMENT,SERVICES,Campbell Scientific Ltd,450567,253.8,428453933
BEIS,Met Office,07/01/2021,07 EQUIPMENT,SERVICES,Campbell Scientific Ltd,450567,2737,428453933
BEIS,Met Office,07/01/2021,07 EQUIPMENT,SERVICES,Campbell Scientific Ltd,450567,1249.2,428453933
BEIS,Met Office,07/01/2021,07 EQUIPMENT,SERVICES,Campbell Scientific Ltd,450567,1130.4,428453933
BEIS,Met Office,07/01/2021,07 EQUIPMENT,SERVICES,Campbell Scientific Ltd,450567,1888.2,428453933
BEIS,Met Office,07/01/2021,07 EQUIPMENT,SERVICES,Campbell Scientific Ltd,450567,68,428453933
BEIS,Met Office,07/01/2021,07 EQUIPMENT,SERVICES,Campbell Scientific Ltd,450567,0,428453933
BEIS,Met Office,07/01/2021,03 STAFF COSTS T&S,SERVICES,CARTUS FINANCING LTD,450714,2867.73,768489458
BEIS,Met Office,07/01/2021,07 EQUIPMENT,SERVICES,OTT HYDROMET,450675,112,-
BEIS,Met Office,07/01/2021,04 CONTRACTORS,SERVICES,QUALSERV CONSULTING LTD,450711,10457.64,719067718
BEIS,Met Office,07/01/2021,11 SERVICES,SERVICES,SOFTWIRE TECHNOLOGY LIMITED,450742,8424,812035476
BEIS,Met Office,07/01/2021,11 SERVICES,TECHNOLOGY AND CIO,BAE SYSTEMS APPLIED INTELLIGENCE LIMITED,450568,55054.9,GB641407169
BEIS,Met Office,07/01/2021,08 SOFTWARE LICENCES,TECHNOLOGY AND CIO,BOXXE,450736,19763.12,734245248
BEIS,Met Office,07/01/2021,10 EQUIPMENT MAINTENANCE,TECHNOLOGY AND CIO,COMPUTACENTER (UK) LTD,450719,2359.42,490334648
BEIS,Met Office,07/01/2021,08 SOFTWARE LICENCES,TECHNOLOGY AND CIO,DXC TECHNOLOGY,450324,337.5,243759288
BEIS,Met Office,07/01/2021,04 CONTRACTORS,TECHNOLOGY AND CIO,GCS IT RECRUITMENT SPECIALISTS LTD,450344,9555,896156575
BEIS,Met Office,07/01/2021,04 CONTRACTORS,TECHNOLOGY AND CIO,HAYS SPECIALIST RECRUITMENT LTD,450663,634.67,773695871
BEIS,Met Office,07/01/2021,04 CONTRACTORS,TECHNOLOGY AND CIO,HAYS SPECIALIST RECRUITMENT LTD,450667,558.71,773695871
BEIS,Met Office,07/01/2021,11 SERVICES,TECHNOLOGY AND CIO,NEXUS OPEN SYSTEMS LTD,450737,21727.62,GB648191516
BEIS,Met Office,07/01/2021,08 SOFTWARE LICENCES,TECHNOLOGY AND CIO,PRESENTATION CARTOGRAPHY LTD,450712,6828,889545649
BEIS,Met Office,07/01/2021,08 SOFTWARE LICENCES,TECHNOLOGY AND CIO,PROSPERON NETWORKS LTD,450602,259,155579377
BEIS,Met Office,07/01/2021,04 CONTRACTORS,TECHNOLOGY AND CIO,WA CONSULTANTS LTD,450743,1208,876328977
BEIS,Met Office,12/01/2021,06 ACCOMMODATION,CHIEF FINANCIAL OFFICER,ABOVE THE REST COMMERCIAL CLEANING LTD,450813,3344.64,848940776
BEIS,Met Office,12/01/2021,06 ACCOMMODATION,CHIEF FINANCIAL OFFICER,Belfast International Airport Ltd,450740,4202.88,617777601
BEIS,Met Office,12/01/2021,06 ACCOMMODATION,CHIEF FINANCIAL OFFICER,Belfast International Airport Ltd,450818,-871.43,GB847176988
BEIS,Met Office,12/01/2021,06 ACCOMMODATION,CHIEF FINANCIAL OFFICER,BIDVEST NOONAN UK LTD,449348,-871.43,GB847176988
BEIS,Met Office,12/01/2021,06 ACCOMMODATION,CHIEF FINANCIAL OFFICER,BIDVEST NOONAN UK LTD,449349,-871.43,GB847176988
BEIS,Met Office,12/01/2021,06 ACCOMMODATION,CHIEF FINANCIAL OFFICER,BIDVEST NOONAN UK LTD,449350,387.16,GB847176988
BEIS,Met Office,12/01/2021,06 ACCOMMODATION,CHIEF FINANCIAL OFFICER,BIDVEST NOONAN UK LTD,449445,387.16,GB847176988
BEIS,Met Office,12/01/2021,06 ACCOMMODATION,CHIEF FINANCIAL OFFICER,BIDVEST NOONAN UK LTD,450238,871.43,GB847176988
BEIS,Met Office,12/01/2021,06 ACCOMMODATION,CHIEF FINANCIAL OFFICER,BIDVEST NOONAN UK LTD,450248,-261.36,GB847176988
BEIS,Met Office,12/01/2021,06 ACCOMMODATION,CHIEF FINANCIAL OFFICER,BIDVEST NOONAN UK LTD,450698,387.16,GB847176988
BEIS,Met Office,12/01/2021,06 ACCOMMODATION,CHIEF FINANCIAL OFFICER,BIDVEST NOONAN UK LTD,451096,871.43,GB847176988
BEIS,Met Office,12/01/2021,06 ACCOMMODATION,CHIEF FINANCIAL OFFICER,BIDVEST NOONAN UK LTD,451097,538.07,537911627
BEIS,Met Office,12/01/2021,06 ACCOMMODATION,CHIEF FINANCIAL OFFICER,BRITISH GAS TRADING LTD,450587,33.41,684966762
BEIS,Met Office,12/01/2021,06 ACCOMMODATION,CHIEF FINANCIAL OFFICER,BRITISH GAS TRADING LTD,450816,169.84,245719348
BEIS,Met Office,12/01/2021,11 SERVICES,CHIEF FINANCIAL OFFICER,BT CONFERENCING,450692,613.16,245719348
BEIS,Met Office,12/01/2021,11 SERVICES,CHIEF FINANCIAL OFFICER,BT CONFERENCING,450695,219.75,245719348
BEIS,Met Office,12/01/2021,11 SERVICES,CHIEF FINANCIAL OFFICER,BT CONFERENCING,450696,227.19,245719348
BEIS,Met Office,12/01/2021,11 SERVICES,CHIEF FINANCIAL OFFICER,BT CONFERENCING,450697,123.2,245719348
BEIS,Met Office,12/01/2021,11 SERVICES,CHIEF FINANCIAL OFFICER,BT GLOBAL SERVICES,450812,11452.64,245719348
BEIS,Met Office,12/01/2021,11 SERVICES,CHIEF FINANCIAL OFFICER,BT PLC,449040,876.22,245719348
BEIS,Met Office,12/01/2021,11 SERVICES,CHIEF FINANCIAL OFFICER,BT PLC,450815,45.53,245719348
BEIS,Met Office,12/01/2021,06 ACCOMMODATION,CHIEF FINANCIAL OFFICER,CARDIFF EXECUTIVE CENTRE LTD,450741,7.55,768489458
BEIS,Met Office,12/01/2021,06 ACCOMMODATION,CHIEF FINANCIAL OFFICER,CBRE MANAGED SERVICES LTD,450953,141916.1,853936883
BEIS,Met Office,12/01/2021,06 ACCOMMODATION,CHIEF FINANCIAL OFFICER,CBRE MANAGED SERVICES LTD,450954,141920.1,853936883
BEIS,Met Office,12/01/2021,06 ACCOMMODATION,CHIEF FINANCIAL OFFICER,CBRE MANAGED SERVICES LTD,450964,11326.15,853936883
BEIS,Met Office,12/01/2021,06 ACCOMMODATION,CHIEF FINANCIAL OFFICER,CBRE MANAGED SERVICES LTD,451030,90,915042161
BEIS,Met Office,12/01/2021,08 SOFTWARE LICENCES,CHIEF FINANCIAL OFFICER,CEMAR,451049,450,915042161
BEIS,Met Office,12/01/2021,08 SOFTWARE LICENCES,CHIEF FINANCIAL OFFICER,CEMAR,451050,450,915042161
BEIS,Met Office,12/01/2021,03 STAFF COSTS T&S,CHIEF FINANCIAL OFFICER,CMC Partnership Global,451016,780599,490334648
BEIS,Met Office,12/01/2021,06 ACCOMMODATION,CHIEF FINANCIAL OFFICER,CORONA ENERGY LTD,450526,815.97,577704800
BEIS,Met Office,12/01/2021,11 SERVICES,CHIEF FINANCIAL OFFICER,DIGITAL COMMUNICATIONS SYSTEMS LIMITED,450802,4132.72,267044752
BEIS,Met Office,12/01/2021,06 ACCOMMODATION,CHIEF FINANCIAL OFFICER,DINNET & KINORD ESTATES,450892,29725,775718779
BEIS,Met Office,12/01/2021,06 ACCOMMODATION,CHIEF FINANCIAL OFFICER,EDF ENERGY CUSTOMERS PLC,450588,127227.45,523041202
BEIS,Met Office,12/01/2021,06 ACCOMMODATION,CHIEF FINANCIAL OFFICER,EDF ENERGY CUSTOMERS PLC,450589,131822.35,523041202
BEIS,Met Office,12/01/2021,03 STAFF COSTS T&S,CHIEF FINANCIAL OFFICER,ENTERPRISE RENT A CAR UK LTD,451102,1369.86,215557314
BEIS,Met Office,12/01/2021,11 SERVICES,CHIEF FINANCIAL OFFICER,EXPONENTIAL-E,451061,1398.73,GB798572653
BEIS,Met Office,12/01/2021,11 SERVICES,CHIEF FINANCIAL OFFICER,EXPONENTIAL-E,451074,3000,583540529
BEIS,Met Office,12/01/2021,06 ACCOMMODATION,CHIEF FINANCIAL OFFICER,FOX GROUNDS MAINTENANCE & LANDSCAPING LTD,450890,3050,855910212
BEIS,Met Office,12/01/2021,11 SERVICES,CHIEF FINANCIAL OFFICER,FSI (FM SOLUTIONS) LTD,450973,7000,-
BEIS,Met Office,12/01/2021,06 ACCOMMODATION,CHIEF FINANCIAL OFFICER,GOVERNMENT PROPERTY AGENCY,450702,485,-
BEIS,Met Office,12/01/2021,06 ACCOMMODATION,CHIEF FINANCIAL OFFICER,HAFREN DYFRDWY CYFYNGEDIG,450738,67507.5,-
BEIS,Met Office,12/01/2021,06 ACCOMMODATION,CHIEF FINANCIAL OFFICER,Haztech Consultants Ltd,450764,1910,616099432
BEIS,Met Office,12/01/2021,06 ACCOMMODATION,CHIEF FINANCIAL OFFICER,Haztech Consultants Ltd,450764,1600,616099432
BEIS,Met Office,12/01/2021,06 ACCOMMODATION,CHIEF FINANCIAL OFFICER,Haztech Consultants Ltd,450764,1910,616099432
BEIS,Met Office,12/01/2021,06 ACCOMMODATION,CHIEF FINANCIAL OFFICER,Haztech Consultants Ltd,450764,2390,616099432
BEIS,Met Office,12/01/2021,06 ACCOMMODATION,CHIEF FINANCIAL OFFICER,Haztech Consultants Ltd,450764,1910,616099432
BEIS,Met Office,12/01/2021,06 ACCOMMODATION,CHIEF FINANCIAL OFFICER,Haztech Consultants Ltd,450764,2390,616099432
BEIS,Met Office,12/01/2021,06 ACCOMMODATION,CHIEF FINANCIAL OFFICER,Haztech Consultants Ltd,450764,-8390.39,792250621
BEIS,Met Office,12/01/2021,11 SERVICES,CHIEF FINANCIAL OFFICER,MITIE SECURITY LTD,450656,744.6,416706654
BEIS,Met Office,12/01/2021,11 SERVICES,CHIEF FINANCIAL OFFICER,MITIE SECURITY LTD,450657,77.16,416706654
BEIS,Met Office,12/01/2021,11 SERVICES,CHIEF FINANCIAL OFFICER,MITIE SECURITY LTD,450731,1427.46,416706654
BEIS,Met Office,12/01/2021,11 SERVICES,CHIEF FINANCIAL OFFICER,MITIE SECURITY LTD,450732,6400,598958541
BEIS,Met Office,12/01/2021,06 ACCOMMODATION,CHIEF FINANCIAL OFFICER,MORAY COUNCIL,450703,2925,663755506
BEIS,Met Office,12/01/2021,13 MISCELLANEOUS,CHIEF FINANCIAL OFFICER,MOUCHEL BUS SERV LTD FRC PREPAYERS LEVY AC,448209,9400,-
BEIS,Met Office,12/01/2021,06 ACCOMMODATION,CHIEF FINANCIAL OFFICER,OCS Group UK Limited,450801,109287.67,GB238034379
BEIS,Met Office,12/01/2021,06 ACCOMMODATION,CHIEF FINANCIAL OFFICER,OCS Group UK Limited,450801,48.1,238034379
BEIS,Met Office,12/01/2021,04 CONTRACTORS,CHIEF FINANCIAL OFFICER,OUTSOURCE UK LIMITED,450979,12258.04,576118722
BEIS,Met Office,12/01/2021,04 CONTRACTORS,CHIEF FINANCIAL OFFICER,OUTSOURCE UK LIMITED,450991,-8255.44,576118722
BEIS,Met Office,12/01/2021,06 ACCOMMODATION,CHIEF FINANCIAL OFFICER,POD POINT,449838,-6300,278743455
BEIS,Met Office,12/01/2021,06 ACCOMMODATION,CHIEF FINANCIAL OFFICER,POD POINT,449839,6300,278743455
BEIS,Met Office,12/01/2021,06 ACCOMMODATION,CHIEF FINANCIAL OFFICER,POD POINT,450581,-9000,278743455
BEIS,Met Office,12/01/2021,06 ACCOMMODATION,CHIEF FINANCIAL OFFICER,POD POINT,450808,37.39,583565114
BEIS,Met Office,12/01/2021,13 MISCELLANEOUS,CHIEF FINANCIAL OFFICER,POSTURITE (UK) LTD,450878,144.46,583565114
BEIS,Met Office,12/01/2021,13 MISCELLANEOUS,CHIEF FINANCIAL OFFICER,POSTURITE (UK) LTD,450879,611.94,583565114
BEIS,Met Office,12/01/2021,13 MISCELLANEOUS,CHIEF FINANCIAL OFFICER,POSTURITE (UK) LTD,451021,680.14,583565114
BEIS,Met Office,12/01/2021,06 ACCOMMODATION,CHIEF FINANCIAL OFFICER,REDACTED PERSONAL DATA,450717,3754,1874305
BEIS,Met Office,12/01/2021,06 ACCOMMODATION,CHIEF FINANCIAL OFFICER,REDACTED PERSONAL DATA,450718,2600,-
BEIS,Met Office,12/01/2021,06 ACCOMMODATION,CHIEF FINANCIAL OFFICER,REDACTED PERSONAL DATA,450739,2240,-
BEIS,Met Office,12/01/2021,06 ACCOMMODATION,CHIEF FINANCIAL OFFICER,REDACTED PERSONAL DATA,450739,2296,-
BEIS,Met Office,12/01/2021,06 ACCOMMODATION,CHIEF FINANCIAL OFFICER,REDACTED PERSONAL DATA,450739,200,N/A
BEIS,Met Office,12/01/2021,06 ACCOMMODATION,CHIEF FINANCIAL OFFICER,REDACTED PERSONAL DATA,450880,720,-
BEIS,Met Office,12/01/2021,06 ACCOMMODATION,CHIEF FINANCIAL OFFICER,SATELLITE MEDIAPORT SERVICES LTD,450806,158,137923104
BEIS,Met Office,12/01/2021,06 ACCOMMODATION,CHIEF FINANCIAL OFFICER,Severn Trent Water Ltd,450821,537.91,486985565
BEIS,Met Office,12/01/2021,04 CONTRACTORS,CHIEF FINANCIAL OFFICER,SOLOS CONSULTANTS LTD,450928,6247.64,812035476
BEIS,Met Office,12/01/2021,04 CONTRACTORS,CHIEF FINANCIAL OFFICER,SOLOS CONSULTANTS LTD,450930,8788,812035476
BEIS,Met Office,12/01/2021,04 CONTRACTORS,CHIEF FINANCIAL OFFICER,SOLOS CONSULTANTS LTD,450939,9724,812035476
BEIS,Met Office,12/01/2021,06 ACCOMMODATION,CHIEF FINANCIAL OFFICER,SOUTH WEST WATER LTD,450817,722.49,236873674
BEIS,Met Office,12/01/2021,06 ACCOMMODATION,CHIEF FINANCIAL OFFICER,ST MODWEN VENTURES LTD,451037,862.5,975081008
BEIS,Met Office,12/01/2021,06 ACCOMMODATION,CHIEF FINANCIAL OFFICER,ST MODWEN VENTURES LTD,451039,82.88,975081008
BEIS,Met Office,12/01/2021,06 ACCOMMODATION,CHIEF FINANCIAL OFFICER,ST MODWEN VENTURES LTD,451067,2737,687720886
BEIS,Met Office,12/01/2021,PLANT AND EQUIPMENT,CHIEF FINANCIAL OFFICER,Stewart Morris Partnership Ltd,450884,690,687720886
BEIS,Met Office,12/01/2021,06 ACCOMMODATION,CHIEF FINANCIAL OFFICER,STONE HILL PARK LTD,450814,591.15,-
BEIS,Met Office,12/01/2021,11 SERVICES,CHIEF FINANCIAL OFFICER,SURE SOUTH ATLANTIC LTD,451107,4743,-
BEIS,Met Office,12/01/2021,11 SERVICES,CHIEF FINANCIAL OFFICER,TELEFONICA O2 UK LIMITED,449391,98700,778603785
BEIS,Met Office,12/01/2021,06 ACCOMMODATION,CHIEF FINANCIAL OFFICER,TENNIE FACILITIES PROPERTY MANAGEMENT LTD,451053,621,343579772
BEIS,Met Office,12/01/2021,FIXTURE & FITTINGS,CHIEF FINANCIAL OFFICER,THORLUX LIGHTING,450963,1100,N/A
BEIS,Met Office,12/01/2021,06 ACCOMMODATION,CHIEF FINANCIAL OFFICER,THORNLEY WILDLIFE SERVICES,450965,80,N/A
BEIS,Met Office,12/01/2021,04 CONTRACTORS,CHIEF FINANCIAL OFFICER,WA CONSULTANTS LTD,450775,11175.68,876328977
BEIS,Met Office,12/01/2021,11 SERVICES,MARKETS,Cgi It Uk Limited,449339,186682.7,232615194
BEIS,Met Office,12/01/2021,11 SERVICES,MARKETS,Cgi It Uk Limited,450329,186682.7,232615194
BEIS,Met Office,12/01/2021,11 SERVICES,MARKETS,DJS RESEARCH LIMITED,450933,9894,775718779
BEIS,Met Office,12/01/2021,11 SERVICES,MARKETS,GCAP UK LTD,450090,14875,991716093
BEIS,Met Office,12/01/2021,11 SERVICES,MARKETS,GCAP UK LTD,450091,9555,896156575
BEIS,Met Office,12/01/2021,04 CONTRACTORS,MARKETS,HAYS SPECIALIST RECRUITMENT LTD,450995,366.16,773695871
BEIS,Met Office,12/01/2021,04 CONTRACTORS,MARKETS,HAYS SPECIALIST RECRUITMENT LTD,450996,400.29,773695871
BEIS,Met Office,12/01/2021,06 ACCOMMODATION,MARKETS,HIGHLANDS & ISLANDS AIRPORTS LTD.,451063,5277385,-
BEIS,Met Office,12/01/2021,04 CONTRACTORS,MARKETS,JOBSEEKERS RECRUITMENT SERVICES LTD,450971,492.25,130 1297 14
BEIS,Met Office,12/01/2021,12 INTERNATIONAL,MARKETS,MYACORN LTD,451099,35443.89,GB 338 5487 64
BEIS,Met Office,12/01/2021,11 SERVICES,MARKETS,Ofcom,451127,12500,GB138187353
BEIS,Met Office,12/01/2021,04 CONTRACTORS,MARKETS,OUTSOURCE UK LIMITED,450981,6260.94,576118722
BEIS,Met Office,12/01/2021,04 CONTRACTORS,MARKETS,QUALSERV CONSULTING LTD,450782,7171.52,719067718
BEIS,Met Office,12/01/2021,04 CONTRACTORS,MARKETS,SOLOS CONSULTANTS LTD,450929,9052.4,812035476
BEIS,Met Office,12/01/2021,04 CONTRACTORS,MARKETS,SOLOS CONSULTANTS LTD,450942,3719.92,812035476
BEIS,Met Office,12/01/2021,04 CONTRACTORS,MARKETS,SOLOS CONSULTANTS LTD,450943,4016.34,812035476
BEIS,Met Office,12/01/2021,04 CONTRACTORS,MARKETS,SOLOS CONSULTANTS LTD,450949,7799.22,812035476
BEIS,Met Office,12/01/2021,04 CONTRACTORS,MARKETS,SOLOS CONSULTANTS LTD,450952,6516.59,812035476
BEIS,Met Office,12/01/2021,12 INTERNATIONAL,MARKETS,TRIPOS CONSULTANTS,450733,109691.28,336940192
BEIS,Met Office,12/01/2021,06 ACCOMMODATION,MARKETS,Wessex Water Services Ltd,450885,350,-
BEIS,Met Office,12/01/2021,06 ACCOMMODATION,MARKETS,Wessex Water Services Ltd,450886,350,-
BEIS,Met Office,12/01/2021,06 ACCOMMODATION,MARKETS,Wessex Water Services Ltd,450887,125.98,-
BEIS,Met Office,12/01/2021,04 CONTRACTORS,OFFICE OF THE CEO,JOBSEEKERS RECRUITMENT SERVICES LTD,450969,848.04,130 1297 14
BEIS,Met Office,12/01/2021,04 CONTRACTORS,OFFICE OF THE CS & TECH,HAYS SPECIALIST RECRUITMENT LTD,450992,207.49,773695871
BEIS,Met Office,12/01/2021,CYCLESCHEME,OTHER,CYCLESCHEME LTD,448917,640.78,850403556
BEIS,Met Office,12/01/2021,CYCLESCHEME,OTHER,CYCLESCHEME LTD,450164,833.33,850403556
BEIS,Met Office,12/01/2021,CYCLESCHEME,OTHER,CYCLESCHEME LTD,450881,284.37,272997547
BEIS,Met Office,12/01/2021,PAYE AND VAT,OTHER,UNIVERSITY OF CAMBRIDGE,447882,10000,214222124
BEIS,Met Office,12/01/2021,11 SERVICES,PEOPLE,CATALYST IT,450799,39784.11,853936883
BEIS,Met Office,12/01/2021,11 SERVICES,PEOPLE,EQUINITI ICS LTD,450699,316.66,915967778
BEIS,Met Office,12/01/2021,11 SERVICES,PEOPLE,EQUINITI ICS LTD,450700,316.66,915967778
BEIS,Met Office,12/01/2021,11 SERVICES,PEOPLE,EQUINITI ICS LTD,450893,6846,915967778
BEIS,Met Office,12/01/2021,11 SERVICES,PEOPLE,EQUINITI ICS LTD,450894,4864,787430791
BEIS,Met Office,12/01/2021,04 CONTRACTORS,PEOPLE,HAYS SPECIALIST RECRUITMENT LTD,450993,195.28,773695871
BEIS,Met Office,12/01/2021,04 CONTRACTORS,PEOPLE,HAYS SPECIALIST RECRUITMENT LTD,450994,183.08,773695871
BEIS,Met Office,12/01/2021,04 CONTRACTORS,PEOPLE,HAYS SPECIALIST RECRUITMENT LTD,450997,707.91,773695871
BEIS,Met Office,12/01/2021,13 MISCELLANEOUS,PEOPLE,HEALTH MANAGEMENT LTD,447959,1651.21,792250621
BEIS,Met Office,12/01/2021,13 MISCELLANEOUS,PEOPLE,HEALTH MANAGEMENT LTD,448759,1764.41,792250621
BEIS,Met Office,12/01/2021,13 MISCELLANEOUS,PEOPLE,HEALTH MANAGEMENT LTD,449439,2796.8,792250621
BEIS,Met Office,12/01/2021,13 MISCELLANEOUS,PEOPLE,HEALTH MANAGEMENT LTD,449440,1946.76,792250621
BEIS,Met Office,12/01/2021,13 MISCELLANEOUS,PEOPLE,HEALTH MANAGEMENT LTD,451017,340.31,792250621
BEIS,Met Office,12/01/2021,13 MISCELLANEOUS,PEOPLE,HEALTH MANAGEMENT LTD,451022,0,945605411
BEIS,Met Office,12/01/2021,11 SERVICES,PEOPLE,MARKET FOCUS CONSULTING LTD,450611,6989.99,197694731
BEIS,Met Office,12/01/2021,11 SERVICES,PEOPLE,MOMENTUM INCORPORATED,450968,1600,598958541
BEIS,Met Office,12/01/2021,04 CONTRACTORS,PEOPLE,OUTSOURCE UK LIMITED,450986,9500,576118722
BEIS,Met Office,12/01/2021,04 CONTRACTORS,PEOPLE,QUALSERV CONSULTING LTD,450783,6840.26,719067718
BEIS,Met Office,12/01/2021,04 CONTRACTORS,PEOPLE,SOLOS CONSULTANTS LTD,450937,5216.64,812035476
BEIS,Met Office,12/01/2021,04 CONTRACTORS,PEOPLE,SOLOS CONSULTANTS LTD,451027,5691.92,812035476
BEIS,Met Office,12/01/2021,11 SERVICES,PROGRAMMES,ALTO AEROSPACE LIMITED,450882,5312.5,275002528
BEIS,Met Office,12/01/2021,11 SERVICES,PROGRAMMES,ALTO AEROSPACE LIMITED,451034,49.32,51406002
BEIS,Met Office,12/01/2021,11 SERVICES,PROGRAMMES,BAE SYSTEMS APPLIED INTELLIGENCE LIMITED,450661,50.64,GB391085740
BEIS,Met Office,12/01/2021,11 SERVICES,PROGRAMMES,British Council,450955,5737.61,684966762
BEIS,Met Office,12/01/2021,05 CONSULTANTS,PROGRAMMES,CMC PARTNERSHIP CONSULTANCY LTD,451012,243.87,303694803
BEIS,Met Office,12/01/2021,04 CONTRACTORS,PROGRAMMES,JOBSEEKERS RECRUITMENT SERVICES LTD,450809,662.3,130 1297 14
BEIS,Met Office,12/01/2021,04 CONTRACTORS,PROGRAMMES,JOBSEEKERS RECRUITMENT SERVICES LTD,450970,537,130 1297 14
BEIS,Met Office,12/01/2021,11 SERVICES,PROGRAMMES,OSBORNE CLARKE LLP,450957,6895,737592693
BEIS,Met Office,12/01/2021,04 CONTRACTORS,PROGRAMMES,OUTSOURCE UK LIMITED,450982,8032.32,576118722
BEIS,Met Office,12/01/2021,04 CONTRACTORS,PROGRAMMES,QUALSERV CONSULTING LTD,450785,6551.01,719067718
BEIS,Met Office,12/01/2021,04 CONTRACTORS,PROGRAMMES,QUALSERV CONSULTING LTD,450786,4359.68,719067718
BEIS,Met Office,12/01/2021,04 CONTRACTORS,PROGRAMMES,QUALSERV CONSULTING LTD,450791,8067.96,719067718
BEIS,Met Office,12/01/2021,04 CONTRACTORS,PROGRAMMES,QUALSERV CONSULTING LTD,450792,2200,719067718
BEIS,Met Office,12/01/2021,04 CONTRACTORS,PROGRAMMES,QUALSERV CONSULTING LTD,450794,13942.5,291532892
BEIS,Met Office,12/01/2021,11 SERVICES,PROGRAMMES,ROWE IT LTD,450797,100,-
BEIS,Met Office,12/01/2021,13 MISCELLANEOUS,PROGRAMMES,ROYAL MET SOCIETY,450889,240.8,-
BEIS,Met Office,12/01/2021,04 CONTRACTORS,PROGRAMMES,SOLOS CONSULTANTS LTD,450924,8840,812035476
BEIS,Met Office,12/01/2021,04 CONTRACTORS,PROGRAMMES,SOLOS CONSULTANTS LTD,450940,8817.25,812035476
BEIS,Met Office,12/01/2021,04 CONTRACTORS,PROGRAMMES,SOLOS CONSULTANTS LTD,450946,9373.05,812035476
BEIS,Met Office,12/01/2021,04 CONTRACTORS,PROGRAMMES,SOLOS CONSULTANTS LTD,450947,5035,812035476
BEIS,Met Office,12/01/2021,04 CONTRACTORS,PROGRAMMES,SOLOS CONSULTANTS LTD,451013,3300,812035476
BEIS,Met Office,12/01/2021,04 CONTRACTORS,PROGRAMMES,SOLOS CONSULTANTS LTD,451015,9405,812035476
BEIS,Met Office,12/01/2021,04 CONTRACTORS,PROGRAMMES,SOLOS CONSULTANTS LTD,451026,7640.14,812035476
BEIS,Met Office,12/01/2021,04 CONTRACTORS,PROGRAMMES,SOLOS CONSULTANTS LTD,451028,5842.46,812035476
BEIS,Met Office,12/01/2021,04 CONTRACTORS,PROGRAMMES,SOLOS CONSULTANTS LTD,451029,8025.6,812035476
BEIS,Met Office,12/01/2021,11 SERVICES,PROGRAMMES,UK CENTRE FOR ECOLOGY & HYDROLOGY (UKCEH),450888,13000,336940192
BEIS,Met Office,12/01/2021,11 SERVICES,PROGRAMMES,University Of Reading,450811,1250,200012659
BEIS,Met Office,12/01/2021,04 CONTRACTORS,PROGRAMMES,WA CONSULTANTS LTD,450779,7439.54,876328977
BEIS,Met Office,12/01/2021,04 CONTRACTORS,PROGRAMMES,WA CONSULTANTS LTD,450795,7000,876328977
BEIS,Met Office,12/01/2021,PAYE AND VAT,SCIENCE,DHL INTERNATIONAL (UK) LTD,440986,29.23,751812341
BEIS,Met Office,12/01/2021,11 SERVICES,SCIENCE,DHL INTERNATIONAL (UK) LTD,440986,-523.9,751812341
BEIS,Met Office,12/01/2021,11 SERVICES,SERVICES,APPLIED SATELLITE TECHNOLOGY SYSTEMS LTD,450693,30.78,720108683
BEIS,Met Office,12/01/2021,11 SERVICES,SERVICES,BOC LTD,450610,9079.12,734245248
BEIS,Met Office,12/01/2021,03 STAFF COSTS T&S,SERVICES,CARTUS LTD,451078,2385,768489458
BEIS,Met Office,12/01/2021,03 STAFF COSTS T&S,SERVICES,CARTUS LTD,451080,6628,768489458
BEIS,Met Office,12/01/2021,03 STAFF COSTS T&S,SERVICES,CARTUS LTD,451082,137,768489458
BEIS,Met Office,12/01/2021,03 STAFF COSTS T&S,SERVICES,CARTUS LTD,451108,4233,768489458
BEIS,Met Office,12/01/2021,11 SERVICES,SERVICES,DHL GLOBAL FORWARDING (UK) LTD,450586,-148.97,751812341
BEIS,Met Office,12/01/2021,PAYE AND VAT,SERVICES,DHL INTERNATIONAL (UK) LTD,435383,-11,751812341
BEIS,Met Office,12/01/2021,11 SERVICES,SERVICES,DHL INTERNATIONAL (UK) LTD,435383,2416.54,751812341
BEIS,Met Office,12/01/2021,PAYE AND VAT,SERVICES,DHL INTERNATIONAL (UK) LTD,440985,60.41,751812341
BEIS,Met Office,12/01/2021,11 SERVICES,SERVICES,DHL INTERNATIONAL (UK) LTD,440985,137.01,751812341
BEIS,Met Office,12/01/2021,11 SERVICES,SERVICES,DHL INTERNATIONAL (UK) LTD,441339,50,751812341
BEIS,Met Office,12/01/2021,06 ACCOMMODATION,SERVICES,INMARSAT SOLUTIONS (CANADA) INC,450715,59.6,766144223
BEIS,Met Office,12/01/2021,06 ACCOMMODATION,SERVICES,INMARSAT SOLUTIONS (CANADA) INC,450716,4931.94,832 7071 39
BEIS,Met Office,12/01/2021,11 SERVICES,SERVICES,Landmark Information Group Ltd,451085,94690.35,634509735
BEIS,Met Office,12/01/2021,11 SERVICES,SERVICES,Landmark Information Group Ltd,451086,69443.43,634509735
BEIS,Met Office,12/01/2021,04 CONTRACTORS,SERVICES,QUALSERV CONSULTING LTD,450781,8516.18,719067718
BEIS,Met Office,12/01/2021,11 SERVICES,SERVICES,RIGNET UK LTD,450883,4280,875299075
BEIS,Met Office,12/01/2021,11 SERVICES,SERVICES,RIGNET UK LTD,450883,4280,875299075
BEIS,Met Office,12/01/2021,11 SERVICES,SERVICES,RIGNET UK LTD,450883,109.09,176286083
BEIS,Met Office,12/01/2021,13 MISCELLANEOUS,SERVICES,Royal Meteorological Society,450727,250.04,888845836
BEIS,Met Office,12/01/2021,07 EQUIPMENT,SERVICES,SB PRECISION ENGINEERING LTD,450735,29787.61,888842551
BEIS,Met Office,12/01/2021,04 CONTRACTORS,SERVICES,SOLOS CONSULTANTS LTD,450927,8340.08,812035476
BEIS,Met Office,12/01/2021,11 SERVICES,SERVICES,WORLDPAY LTD,450626,1411.33,811321091
BEIS,Met Office,12/01/2021,11 SERVICES,TECHNOLOGY AND CIO,AKAMAI TECHNOLOGIES LTD,451068,25819.95,745091237
BEIS,Met Office,12/01/2021,11 SERVICES,TECHNOLOGY AND CIO,AKAMAI TECHNOLOGIES LTD,451068,720,-
BEIS,Met Office,12/01/2021,08 SOFTWARE LICENCES,TECHNOLOGY AND CIO,BOXXE,450958,132,734245248
BEIS,Met Office,12/01/2021,11 SERVICES,TECHNOLOGY AND CIO,CLOUDREACH EUROPE LIMITED,450934,2215.29,978187168
BEIS,Met Office,12/01/2021,10 EQUIPMENT MAINTENANCE,TECHNOLOGY AND CIO,COMPUTACENTER (UK) LTD,450896,23305.5,490334648
BEIS,Met Office,12/01/2021,08 SOFTWARE LICENCES,TECHNOLOGY AND CIO,COMPUTACENTER (UK) LTD,451000,17.75,490334648
BEIS,Met Office,12/01/2021,10 EQUIPMENT MAINTENANCE,TECHNOLOGY AND CIO,COMPUTACENTER (UK) LTD,451001,98.53,490334648
BEIS,Met Office,12/01/2021,10 EQUIPMENT MAINTENANCE,TECHNOLOGY AND CIO,COMPUTACENTER (UK) LTD,451002,1432.51,490334648
BEIS,Met Office,12/01/2021,10 EQUIPMENT MAINTENANCE,TECHNOLOGY AND CIO,COMPUTACENTER (UK) LTD,451046,3202.07,490334648
BEIS,Met Office,12/01/2021,04 CONTRACTORS,TECHNOLOGY AND CIO,FDM GROUP LIMITED,451006,3375,583540529
BEIS,Met Office,12/01/2021,04 CONTRACTORS,TECHNOLOGY AND CIO,FDM GROUP LIMITED,451007,810,583540529
BEIS,Met Office,12/01/2021,04 CONTRACTORS,TECHNOLOGY AND CIO,FDM GROUP LIMITED,451008,4860,583540529
BEIS,Met Office,12/01/2021,04 CONTRACTORS,TECHNOLOGY AND CIO,FDM GROUP LIMITED,451009,3510,583540529
BEIS,Met Office,12/01/2021,04 CONTRACTORS,TECHNOLOGY AND CIO,FDM GROUP LIMITED,451010,1080,583540529
BEIS,Met Office,12/01/2021,04 CONTRACTORS,TECHNOLOGY AND CIO,FDM GROUP LIMITED,451011,2700,583540529
BEIS,Met Office,12/01/2021,04 CONTRACTORS,TECHNOLOGY AND CIO,FDM GROUP LIMITED,451023,17910,237333808
BEIS,Met Office,12/01/2021,11 SERVICES,TECHNOLOGY AND CIO,FLYFORM LTD,450803,16915,237333808
BEIS,Met Office,12/01/2021,11 SERVICES,TECHNOLOGY AND CIO,FLYFORM LTD,450803,3980,237333808
BEIS,Met Office,12/01/2021,11 SERVICES,TECHNOLOGY AND CIO,FLYFORM LTD,450803,13930,237333808
BEIS,Met Office,12/01/2021,11 SERVICES,TECHNOLOGY AND CIO,FLYFORM LTD,450804,17910,237333808
BEIS,Met Office,12/01/2021,11 SERVICES,TECHNOLOGY AND CIO,FLYFORM LTD,450804,5472.5,237333808
BEIS,Met Office,12/01/2021,11 SERVICES,TECHNOLOGY AND CIO,FLYFORM LTD,450804,11900,237333808
BEIS,Met Office,12/01/2021,11 SERVICES,TECHNOLOGY AND CIO,FLYFORM LTD,450804,17910,237333808
BEIS,Met Office,12/01/2021,11 SERVICES,TECHNOLOGY AND CIO,FLYFORM LTD,450805,9143,922056940
BEIS,Met Office,12/01/2021,04 CONTRACTORS,TECHNOLOGY AND CIO,OUTSOURCE UK LIMITED,450877,8550,576118722
BEIS,Met Office,12/01/2021,04 CONTRACTORS,TECHNOLOGY AND CIO,OUTSOURCE UK LIMITED,450974,9000,576118722
BEIS,Met Office,12/01/2021,04 CONTRACTORS,TECHNOLOGY AND CIO,OUTSOURCE UK LIMITED,450975,7538.4,576118722
BEIS,Met Office,12/01/2021,04 CONTRACTORS,TECHNOLOGY AND CIO,OUTSOURCE UK LIMITED,450976,1400,576118722
BEIS,Met Office,12/01/2021,04 CONTRACTORS,TECHNOLOGY AND CIO,OUTSOURCE UK LIMITED,450977,9983.16,576118722
BEIS,Met Office,12/01/2021,04 CONTRACTORS,TECHNOLOGY AND CIO,OUTSOURCE UK LIMITED,450978,7643.16,576118722
BEIS,Met Office,12/01/2021,04 CONTRACTORS,TECHNOLOGY AND CIO,OUTSOURCE UK LIMITED,450980,8574.32,576118722
BEIS,Met Office,12/01/2021,04 CONTRACTORS,TECHNOLOGY AND CIO,OUTSOURCE UK LIMITED,450983,14875,576118722
BEIS,Met Office,12/01/2021,04 CONTRACTORS,TECHNOLOGY AND CIO,OUTSOURCE UK LIMITED,450984,7661.52,576118722
BEIS,Met Office,12/01/2021,04 CONTRACTORS,TECHNOLOGY AND CIO,OUTSOURCE UK LIMITED,450985,5440.93,576118722
BEIS,Met Office,12/01/2021,04 CONTRACTORS,TECHNOLOGY AND CIO,OUTSOURCE UK LIMITED,450987,11400,576118722
BEIS,Met Office,12/01/2021,04 CONTRACTORS,TECHNOLOGY AND CIO,OUTSOURCE UK LIMITED,450988,6564.16,576118722
BEIS,Met Office,12/01/2021,04 CONTRACTORS,TECHNOLOGY AND CIO,OUTSOURCE UK LIMITED,450989,9307.65,576118722
BEIS,Met Office,12/01/2021,04 CONTRACTORS,TECHNOLOGY AND CIO,OUTSOURCE UK LIMITED,450990,7874.34,576118722
BEIS,Met Office,12/01/2021,04 CONTRACTORS,TECHNOLOGY AND CIO,QUALSERV CONSULTING LTD,450780,5344.8,719067718
BEIS,Met Office,12/01/2021,04 CONTRACTORS,TECHNOLOGY AND CIO,QUALSERV CONSULTING LTD,450784,6650,719067718
BEIS,Met Office,12/01/2021,04 CONTRACTORS,TECHNOLOGY AND CIO,QUALSERV CONSULTING LTD,450787,11238.5,719067718
BEIS,Met Office,12/01/2021,04 CONTRACTORS,TECHNOLOGY AND CIO,QUALSERV CONSULTING LTD,450788,5222.25,719067718
BEIS,Met Office,12/01/2021,04 CONTRACTORS,TECHNOLOGY AND CIO,QUALSERV CONSULTING LTD,450789,9772.65,719067718
BEIS,Met Office,12/01/2021,04 CONTRACTORS,TECHNOLOGY AND CIO,QUALSERV CONSULTING LTD,450790,8516.18,719067718
BEIS,Met Office,12/01/2021,08 SOFTWARE LICENCES,TECHNOLOGY AND CIO,SOFTWAREONE,451059,84.6,GB 942 5301 43
BEIS,Met Office,12/01/2021,08 SOFTWARE LICENCES,TECHNOLOGY AND CIO,SOFTWAREONE,451059,209.7,GB 942 5301 43
BEIS,Met Office,12/01/2021,08 SOFTWARE LICENCES,TECHNOLOGY AND CIO,SOFTWAREONE,451059,18914.79,GB 942 5301 43
BEIS,Met Office,12/01/2021,08 SOFTWARE LICENCES,TECHNOLOGY AND CIO,SOFTWAREONE,451060,4794.3,GB 942 5301 43
BEIS,Met Office,12/01/2021,04 CONTRACTORS,TECHNOLOGY AND CIO,SOLOS CONSULTANTS LTD,450923,7098,812035476
BEIS,Met Office,12/01/2021,04 CONTRACTORS,TECHNOLOGY AND CIO,SOLOS CONSULTANTS LTD,450925,6900.95,812035476
BEIS,Met Office,12/01/2021,04 CONTRACTORS,TECHNOLOGY AND CIO,SOLOS CONSULTANTS LTD,450931,8830.25,812035476
BEIS,Met Office,12/01/2021,04 CONTRACTORS,TECHNOLOGY AND CIO,SOLOS CONSULTANTS LTD,450935,5330,812035476
BEIS,Met Office,12/01/2021,04 CONTRACTORS,TECHNOLOGY AND CIO,SOLOS CONSULTANTS LTD,450936,5094.44,812035476
BEIS,Met Office,12/01/2021,04 CONTRACTORS,TECHNOLOGY AND CIO,SOLOS CONSULTANTS LTD,450938,3494.48,812035476
BEIS,Met Office,12/01/2021,04 CONTRACTORS,TECHNOLOGY AND CIO,SOLOS CONSULTANTS LTD,450941,4807,812035476
BEIS,Met Office,12/01/2021,04 CONTRACTORS,TECHNOLOGY AND CIO,SOLOS CONSULTANTS LTD,450944,4770,812035476
BEIS,Met Office,12/01/2021,04 CONTRACTORS,TECHNOLOGY AND CIO,SOLOS CONSULTANTS LTD,450945,7410,812035476
BEIS,Met Office,12/01/2021,04 CONTRACTORS,TECHNOLOGY AND CIO,SOLOS CONSULTANTS LTD,450948,5554.4,812035476
BEIS,Met Office,12/01/2021,04 CONTRACTORS,TECHNOLOGY AND CIO,SOLOS CONSULTANTS LTD,450950,3299.67,812035476
BEIS,Met Office,12/01/2021,04 CONTRACTORS,TECHNOLOGY AND CIO,SOLOS CONSULTANTS LTD,450951,4270,812035476
BEIS,Met Office,12/01/2021,04 CONTRACTORS,TECHNOLOGY AND CIO,SOLOS CONSULTANTS LTD,451014,4188.84,812035476
BEIS,Met Office,12/01/2021,04 CONTRACTORS,TECHNOLOGY AND CIO,SOLOS CONSULTANTS LTD,451024,6500,812035476
BEIS,Met Office,12/01/2021,04 CONTRACTORS,TECHNOLOGY AND CIO,SOLOS CONSULTANTS LTD,451025,5850,812035476
BEIS,Met Office,12/01/2021,11 SERVICES,TECHNOLOGY AND CIO,SYNTHESYS SYSTEMS ENGINEERS LTD,450807,13265.72,193136211
BEIS,Met Office,12/01/2021,INFORMATION TECHNOLOGY,TECHNOLOGY AND CIO,TELEFONICA O2 UK LIMITED,450747,8193.41,778603785
BEIS,Met Office,12/01/2021,04 CONTRACTORS,TECHNOLOGY AND CIO,WA CONSULTANTS LTD,450774,11046,876328977
BEIS,Met Office,12/01/2021,04 CONTRACTORS,TECHNOLOGY AND CIO,WA CONSULTANTS LTD,450777,11433,876328977
BEIS,Met Office,12/01/2021,04 CONTRACTORS,TECHNOLOGY AND CIO,WA CONSULTANTS LTD,450778,2178,876328977
BEIS,Met Office,12/01/2021,04 CONTRACTORS,TECHNOLOGY AND CIO,WA CONSULTANTS LTD,450796,8140,876328977
BEIS,Met Office,12/01/2021,04 CONTRACTORS,TECHNOLOGY AND CIO,WA CONSULTANTS LTD,450798,12316.37,876328977
BEIS,Met Office,12/01/2021,04 CONTRACTORS,TECHNOLOGY AND CIO,WA CONSULTANTS LTD,450800,3000,876328977
BEIS,Met Office,12/01/2021,04 CONTRACTORS,TECHNOLOGY AND CIO,WA CONSULTANTS LTD,450967,-302,876328977
BEIS,Met Office,13/01/2021,11 SERVICES,CHIEF FINANCIAL OFFICER,EIR,22232,2049.94,155790484
BEIS,Met Office,13/01/2021,12 INTERNATIONAL,MARKETS,ECOMET,22206,109920.48,523041202
BEIS,Met Office,13/01/2021,08 SOFTWARE LICENCES,MARKETS,"IBL SOFTWARE ENGINEERING, SPOL S.R.O.",22198,24314.52,SK2020241883
BEIS,Met Office,13/01/2021,CASH AT BANK AND IN HAND,OTHER,TNT INTERNATIONAL,440186,-321.25,354715057
BEIS,Met Office,13/01/2021,CASH AT BANK AND IN HAND,OTHER,TNT INTERNATIONAL,446005,3331.8,610652671
BEIS,Met Office,13/01/2021,07 EQUIPMENT,SCIENCE,RADIOMETER PHYSICS GMBH,22228,1311.96,DE123377395
BEIS,Met Office,13/01/2021,07 EQUIPMENT,SCIENCE,RADIOMETER PHYSICS GMBH,22228,47813,599625179
BEIS,Met Office,13/01/2021,12 INTERNATIONAL,SERVICES,Deutscher Wetterdienst,22204,374.62,745260438
BEIS,Met Office,13/01/2021,STOCK,SERVICES,"LONG HUA SHIPPING AGENCY CO., LTD",10049,5820,821176647
BEIS,Met Office,13/01/2021,STOCK,SERVICES,VAISALA OYJ,22083,22783.48,FI01244162
BEIS,Met Office,13/01/2021,TRADE CREDITORS,SERVICES,VAISALA OYJ,22083,0,FI01244162
BEIS,Met Office,13/01/2021,STOCK,SERVICES,VAISALA OYJ,22084,14699.02,FI01244162
BEIS,Met Office,13/01/2021,TRADE CREDITORS,SERVICES,VAISALA OYJ,22084,0,FI01244162
BEIS,Met Office,13/01/2021,STOCK,SERVICES,VAISALA OYJ,22087,0,FI01244162
BEIS,Met Office,13/01/2021,STOCK,SERVICES,VAISALA OYJ,22087,36357.01,FI01244162
BEIS,Met Office,13/01/2021,TRADE CREDITORS,SERVICES,VAISALA OYJ,22087,11837.29,FI01244162
BEIS,Met Office,13/01/2021,TRADE CREDITORS,SERVICES,VAISALA OYJ,22087,0,FI01244162
BEIS,Met Office,13/01/2021,STOCK,SERVICES,VAISALA OYJ,22142,81966.03,FI01244162
BEIS,Met Office,13/01/2021,TRADE CREDITORS,SERVICES,VAISALA OYJ,22142,0,FI01244162
BEIS,Met Office,14/01/2021,11 SERVICES,CHIEF FINANCIAL OFFICER,ALLSTAR BUSINESS SOLUTIONS LTD,450962,253.38,747880191
BEIS,Met Office,14/01/2021,13 MISCELLANEOUS,CHIEF FINANCIAL OFFICER,BANNER GROUP LIMITED,451104,45.73,GB391085740
BEIS,Met Office,14/01/2021,06 ACCOMMODATION,CHIEF FINANCIAL OFFICER,BANNER GROUP LIMITED,451250,23999.75,617777601
BEIS,Met Office,14/01/2021,11 SERVICES,CHIEF FINANCIAL OFFICER,BT CONFERENCING,451249,12472.27,245719348
BEIS,Met Office,14/01/2021,06 ACCOMMODATION,CHIEF FINANCIAL OFFICER,CORONA ENERGY LTD,451073,977.24,577704800
BEIS,Met Office,14/01/2021,06 ACCOMMODATION,CHIEF FINANCIAL OFFICER,CORONA ENERGY LTD,451110,12988.65,-
BEIS,Met Office,14/01/2021,06 ACCOMMODATION,CHIEF FINANCIAL OFFICER,EDF ENERGY CUSTOMERS PLC,451040,397673.48,523041202
BEIS,Met Office,14/01/2021,06 ACCOMMODATION,CHIEF FINANCIAL OFFICER,EDF ENERGY CUSTOMERS PLC,451041,112851.75,523041202
BEIS,Met Office,14/01/2021,06 ACCOMMODATION,CHIEF FINANCIAL OFFICER,EDF ENERGY CUSTOMERS PLC,451042,99881.12,523041202
BEIS,Met Office,14/01/2021,06 ACCOMMODATION,CHIEF FINANCIAL OFFICER,EDF ENERGY CUSTOMERS PLC,451043,-109999.44,523041202
BEIS,Met Office,14/01/2021,06 ACCOMMODATION,CHIEF FINANCIAL OFFICER,EDF ENERGY CUSTOMERS PLC,451044,-131817.63,523041202
BEIS,Met Office,14/01/2021,06 ACCOMMODATION,CHIEF FINANCIAL OFFICER,EDF ENERGY CUSTOMERS PLC,451071,109991.95,523041202
BEIS,Met Office,14/01/2021,06 ACCOMMODATION,CHIEF FINANCIAL OFFICER,EDF ENERGY CUSTOMERS PLC,451072,3590.57,523041202
BEIS,Met Office,14/01/2021,03 STAFF COSTS T&S,CHIEF FINANCIAL OFFICER,ENTERPRISE RENT A CAR UK LTD,451323,298.59,215557314
BEIS,Met Office,14/01/2021,FIXTURE & FITTINGS,CHIEF FINANCIAL OFFICER,FMS INTERIOR SERVICES LTD,451003,305.66,129495383
BEIS,Met Office,14/01/2021,11 SERVICES,CHIEF FINANCIAL OFFICER,GB GROUP PLC,451262,35000,991716093
BEIS,Met Office,14/01/2021,11 SERVICES,CHIEF FINANCIAL OFFICER,JERSEY TELECOM,451245,137.61,NOTVATREG
BEIS,Met Office,14/01/2021,11 SERVICES,CHIEF FINANCIAL OFFICER,JERSEY TELECOM,451245,1311.14,NOTVATREG
BEIS,Met Office,14/01/2021,11 SERVICES,CHIEF FINANCIAL OFFICER,JERSEY TELECOM,451246,12.87,NOTVATREG
BEIS,Met Office,14/01/2021,11 SERVICES,CHIEF FINANCIAL OFFICER,JERSEY TELECOM,451246,607.38,130 1297 14
BEIS,Met Office,14/01/2021,FIXTURE & FITTINGS,CHIEF FINANCIAL OFFICER,NMCN PLC,451253,2868.86,GB648191516
BEIS,Met Office,14/01/2021,06 ACCOMMODATION,CHIEF FINANCIAL OFFICER,POWER NI ENERGY LTD,451244,805.48,617518142
BEIS,Met Office,14/01/2021,06 ACCOMMODATION,CHIEF FINANCIAL OFFICER,Scottish Government,451314,133.17,581705924
BEIS,Met Office,14/01/2021,06 ACCOMMODATION,CHIEF FINANCIAL OFFICER,SOUTH WEST WATER LTD,451322,68.46,236873674
BEIS,Met Office,14/01/2021,11 SERVICES,CHIEF FINANCIAL OFFICER,SURE SOUTH ATLANTIC LTD,451109,1231.92,NOVATREG
BEIS,Met Office,14/01/2021,11 SERVICES,CHIEF FINANCIAL OFFICER,TELEFONICA O2 UK LIMITED,451103,207.15,982055803
BEIS,Met Office,14/01/2021,06 ACCOMMODATION,CHIEF FINANCIAL OFFICER,THORNLEY WILDLIFE SERVICES,450966,321.25,354715057
BEIS,Met Office,14/01/2021,04 CONTRACTORS,CHIEF FINANCIAL OFFICER,WA CONSULTANTS LTD,451088,8024.04,876328977
BEIS,Met Office,14/01/2021,04 CONTRACTORS,CHIEF FINANCIAL OFFICER,WA CONSULTANTS LTD,451091,13673.01,876328977
BEIS,Met Office,14/01/2021,06 ACCOMMODATION,CHIEF FINANCIAL OFFICER,WEST LANCASHIRE BOROUGH COUNCIL,451321,1039.95,749536001
BEIS,Met Office,14/01/2021,11 SERVICES,MARKETS,ACCELERATION EMARKETING,450932,342,538877093
BEIS,Met Office,14/01/2021,11 SERVICES,MARKETS,ALISON MOULDING,451048,907.69,747880191
BEIS,Met Office,14/01/2021,11 SERVICES,MARKETS,CACI LTD,451092,600,380609841
BEIS,Met Office,14/01/2021,11 SERVICES,MARKETS,CACI LTD,451092,146.66,380609841
BEIS,Met Office,14/01/2021,11 SERVICES,MARKETS,CACI LTD,451092,2079.87,380609841
BEIS,Met Office,14/01/2021,11 SERVICES,MARKETS,CACI LTD,451092,53438.25,380609841
BEIS,Met Office,14/01/2021,11 SERVICES,MARKETS,CACI LTD,451092,4066.6,380609841
BEIS,Met Office,14/01/2021,11 SERVICES,MARKETS,Cgi It Uk Limited,450998,1205,783848277
BEIS,Met Office,14/01/2021,11 SERVICES,MARKETS,GEOSMART INFORMATION LTD,450961,694,NOVAT
BEIS,Met Office,14/01/2021,11 SERVICES,MARKETS,HOLLY TURNER-FLYNN,451270,29339,102099056
BEIS,Met Office,14/01/2021,04 CONTRACTORS,MARKETS,JOBSEEKERS RECRUITMENT SERVICES LTD,451055,662.3,130 1297 14
BEIS,Met Office,14/01/2021,04 CONTRACTORS,MARKETS,JOBSEEKERS RECRUITMENT SERVICES LTD,451056,537,130 1297 14
BEIS,Met Office,14/01/2021,08 SOFTWARE LICENCES,MARKETS,MICRO FOCUS SOFTWARE UK LTD,451047,10263.36,416706654
BEIS,Met Office,14/01/2021,11 SERVICES,MARKETS,National Oceanography Centre,449432,26651.64,GB 338 5487 64
BEIS,Met Office,14/01/2021,11 SERVICES,MARKETS,NATS (EN ROUTE) PLC,451045,442.9,430188472
BEIS,Met Office,14/01/2021,11 SERVICES,MARKETS,REDACTED PERSONAL DATA,450972,720,-
BEIS,Met Office,14/01/2021,11 SERVICES,MARKETS,REDACTED PERSONAL DATA,451032,720,-
BEIS,Met Office,14/01/2021,11 SERVICES,MARKETS,REDACTED PERSONAL DATA,451038,20000,N/A
BEIS,Met Office,14/01/2021,04 CONTRACTORS,MARKETS,SOLOS CONSULTANTS LTD,450926,6460.74,812035476
BEIS,Met Office,14/01/2021,11 SERVICES,MARKETS,SPOKE (INTERACTIVE) LTD,451261,10137.45,570118464
BEIS,Met Office,14/01/2021,04 CONTRACTORS,PEOPLE,HAYS SPECIALIST RECRUITMENT LTD,451105,445.49,773695871
BEIS,Met Office,14/01/2021,04 CONTRACTORS,PEOPLE,HAYS SPECIALIST RECRUITMENT LTD,451106,183.08,773695871
BEIS,Met Office,14/01/2021,11 SERVICES,PEOPLE,HOPSCOTCH CONSULTING,450960,125308.84,SK2020241883
BEIS,Met Office,14/01/2021,11 SERVICES,PEOPLE,MOMENTUM INCORPORATED,451095,170.82,663755506
BEIS,Met Office,14/01/2021,11 SERVICES,PEOPLE,SOURCE COACHING CONSULTANCY,451054,3235.83,236873674
BEIS,Met Office,14/01/2021,11 SERVICES,PROGRAMMES,ELASTICSEARCH LTD,451094,5320.88,155790484
BEIS,Met Office,14/01/2021,11 SERVICES,PROGRAMMES,RAND EUROPE,451052,10000,599625179
BEIS,Met Office,14/01/2021,11 SERVICES,PROGRAMMES,RAND EUROPE,451052,95,899936427
BEIS,Met Office,14/01/2021,04 CONTRACTORS,PROGRAMMES,WA CONSULTANTS LTD,451062,8490.45,876328977
BEIS,Met Office,14/01/2021,04 CONTRACTORS,PROGRAMMES,WA CONSULTANTS LTD,451090,5221.5,876328977
BEIS,Met Office,14/01/2021,13 MISCELLANEOUS,SCIENCE,UNIVERSITY OF EAST ANGLIA,450343,56038.24,595183505
BEIS,Met Office,14/01/2021,13 MISCELLANEOUS,SCIENCE,UNIVERSITY OF EAST ANGLIA,451064,-1000,595183505
BEIS,Met Office,14/01/2021,13 MISCELLANEOUS,SCIENCE,UNIVERSITY OF EAST ANGLIA,451065,3500,142047795
BEIS,Met Office,14/01/2021,11 SERVICES,SERVICES,APPLIED SATELLITE TECHNOLOGY SYSTEMS LTD,450514,276.74,720108683
BEIS,Met Office,14/01/2021,03 STAFF COSTS T&S,SERVICES,CARTUS LTD,451081,6600,768489458
BEIS,Met Office,14/01/2021,11 SERVICES,SERVICES,CLOUDREACH EUROPE LIMITED,451300,4000,978187168
BEIS,Met Office,14/01/2021,11 SERVICES,SERVICES,MERKLE UK THREE LTD T/A MERKLE PERISCOPIX,451075,15,GB675903894
BEIS,Met Office,14/01/2021,10 EQUIPMENT MAINTENANCE,TECHNOLOGY AND CIO,COMPUTACENTER (UK) LTD,451251,8514,490334648
BEIS,Met Office,14/01/2021,11 SERVICES,TECHNOLOGY AND CIO,ELASTICSEARCH LTD,451094,552.36,215557314
BEIS,Met Office,14/01/2021,04 CONTRACTORS,TECHNOLOGY AND CIO,GCS IT RECRUITMENT SPECIALISTS LTD,451076,12000,896156575
BEIS,Met Office,14/01/2021,04 CONTRACTORS,TECHNOLOGY AND CIO,GCS IT RECRUITMENT SPECIALISTS LTD,451077,5833,172271519
BEIS,Met Office,14/01/2021,04 CONTRACTORS,TECHNOLOGY AND CIO,WA CONSULTANTS LTD,451087,13875,876328977
BEIS,Met Office,14/01/2021,04 CONTRACTORS,TECHNOLOGY AND CIO,WA CONSULTANTS LTD,451089,8075.55,876328977
BEIS,Met Office,26/01/2021,11 SERVICES,CHIEF FINANCIAL OFFICER,ALLSTAR BUSINESS SOLUTIONS LTD,451448,9637.5,275002528
BEIS,Met Office,26/01/2021,06 ACCOMMODATION,CHIEF FINANCIAL OFFICER,ANGLIAN WATER BUSINESS NATIONAL LTD,451248,82.6,981686175
BEIS,Met Office,26/01/2021,11 SERVICES,CHIEF FINANCIAL OFFICER,ANVIL MOBILE LIMITED,451260,29.58,981686175
BEIS,Met Office,26/01/2021,11 SERVICES,CHIEF FINANCIAL OFFICER,ANVIL MOBILE LIMITED,451260,98.6,981686175
BEIS,Met Office,26/01/2021,11 SERVICES,CHIEF FINANCIAL OFFICER,ANVIL MOBILE LIMITED,451260,111.3,981686175
BEIS,Met Office,26/01/2021,11 SERVICES,CHIEF FINANCIAL OFFICER,ANVIL MOBILE LIMITED,451260,34.85,981686175
BEIS,Met Office,26/01/2021,11 SERVICES,CHIEF FINANCIAL OFFICER,ANVIL MOBILE LIMITED,451260,600,169466658
BEIS,Met Office,26/01/2021,11 SERVICES,CHIEF FINANCIAL OFFICER,BT GLOBAL SERVICES,451473,-896.07,245719348
BEIS,Met Office,26/01/2021,06 ACCOMMODATION,CHIEF FINANCIAL OFFICER,CALOR GAS LIMITED,451409,34.25,207610984
BEIS,Met Office,26/01/2021,06 ACCOMMODATION,CHIEF FINANCIAL OFFICER,CALOR GAS LIMITED,451410,34.25,207610984
BEIS,Met Office,26/01/2021,06 ACCOMMODATION,CHIEF FINANCIAL OFFICER,CALOR GAS LIMITED,451411,1100.54,207610984
BEIS,Met Office,26/01/2021,06 ACCOMMODATION,CHIEF FINANCIAL OFFICER,CALOR GAS LIMITED,451412,419.53,207610984
BEIS,Met Office,26/01/2021,06 ACCOMMODATION,CHIEF FINANCIAL OFFICER,CALOR GAS LIMITED,451472,-288.93,207610984
BEIS,Met Office,26/01/2021,06 ACCOMMODATION,CHIEF FINANCIAL OFFICER,CALOR GAS LIMITED,451518,78779,GB424750755
BEIS,Met Office,26/01/2021,08 SOFTWARE LICENCES,CHIEF FINANCIAL OFFICER,CEMAR,451446,90,915042161
BEIS,Met Office,26/01/2021,08 SOFTWARE LICENCES,CHIEF FINANCIAL OFFICER,CEMAR,451447,186682.7,232615194
BEIS,Met Office,26/01/2021,11 SERVICES,CHIEF FINANCIAL OFFICER,ECMWF,450247,19791.51,EXEMPT
BEIS,Met Office,26/01/2021,06 ACCOMMODATION,CHIEF FINANCIAL OFFICER,EDF ENERGY CUSTOMERS PLC,451084,4155.14,523041202
BEIS,Met Office,26/01/2021,11 SERVICES,CHIEF FINANCIAL OFFICER,GAMMA BUSINESS COMMUNICATIONS LTD,451269,269.66,823820344
BEIS,Met Office,26/01/2021,11 SERVICES,CHIEF FINANCIAL OFFICER,GAMMA TELECOM LTD,451263,28772.86,823820344
BEIS,Met Office,26/01/2021,11 SERVICES,CHIEF FINANCIAL OFFICER,GAMMA TELECOM LTD,451263,390.54,539716218
BEIS,Met Office,26/01/2021,11 SERVICES,CHIEF FINANCIAL OFFICER,GIBRALTAR NYNEX COMMUNICATIONS LTD,451320,68.75,-
BEIS,Met Office,26/01/2021,06 ACCOMMODATION,CHIEF FINANCIAL OFFICER,GOVERNMENT PROPERTY AGENCY,450571,12880,-
BEIS,Met Office,26/01/2021,11 SERVICES,CHIEF FINANCIAL OFFICER,INTEROUTE COMMUNICATIONS LIMITED,451440,712,-
BEIS,Met Office,26/01/2021,11 SERVICES,CHIEF FINANCIAL OFFICER,MAWASEM LTD,451259,16630,843316243
BEIS,Met Office,26/01/2021,06 ACCOMMODATION,CHIEF FINANCIAL OFFICER,NESS ENGINEERING LTD,451441,11650,723221673
BEIS,Met Office,26/01/2021,FIXTURE & FITTINGS,CHIEF FINANCIAL OFFICER,NMCN PLC,451496,3215.58,GB648191516
BEIS,Met Office,26/01/2021,FIXTURE & FITTINGS,CHIEF FINANCIAL OFFICER,NMCN PLC,451496,43878.46,GB648191516
BEIS,Met Office,26/01/2021,FIXTURE & FITTINGS,CHIEF FINANCIAL OFFICER,NMCN PLC,451496,1216.07,GB648191516
BEIS,Met Office,26/01/2021,FIXTURE & FITTINGS,CHIEF FINANCIAL OFFICER,NMCN PLC,451496,449.4,GB648191516
BEIS,Met Office,26/01/2021,FIXTURE & FITTINGS,CHIEF FINANCIAL OFFICER,NMCN PLC,451496,926.18,GB648191516
BEIS,Met Office,26/01/2021,FIXTURE & FITTINGS,CHIEF FINANCIAL OFFICER,NMCN PLC,451496,47.7,751402071
BEIS,Met Office,26/01/2021,06 ACCOMMODATION,CHIEF FINANCIAL OFFICER,Ocs Group Uk Ltd,451474,16160,833012277
BEIS,Met Office,26/01/2021,13 MISCELLANEOUS,CHIEF FINANCIAL OFFICER,POSTURITE (UK) LTD,451004,63.23,583565114
BEIS,Met Office,26/01/2021,13 MISCELLANEOUS,CHIEF FINANCIAL OFFICER,POSTURITE (UK) LTD,451005,30.38,583565114
BEIS,Met Office,26/01/2021,13 MISCELLANEOUS,CHIEF FINANCIAL OFFICER,POSTURITE (UK) LTD,451019,50,583565114
BEIS,Met Office,26/01/2021,13 MISCELLANEOUS,CHIEF FINANCIAL OFFICER,POSTURITE (UK) LTD,451020,75,583565114
BEIS,Met Office,26/01/2021,13 MISCELLANEOUS,CHIEF FINANCIAL OFFICER,POSTURITE (UK) LTD,451069,691.24,617518142
BEIS,Met Office,26/01/2021,06 ACCOMMODATION,CHIEF FINANCIAL OFFICER,POWER NI ENERGY LTD,451414,118,617518142
BEIS,Met Office,26/01/2021,06 ACCOMMODATION,CHIEF FINANCIAL OFFICER,PUBLIC SUB ACCOUNT - HMG 4806,451252,6572.38,719067718
BEIS,Met Office,26/01/2021,06 ACCOMMODATION,CHIEF FINANCIAL OFFICER,ROYAL PARKS,451247,20.99,152264528
BEIS,Met Office,26/01/2021,06 ACCOMMODATION,CHIEF FINANCIAL OFFICER,SAFESTORE LTD,451307,397.8,-
BEIS,Met Office,26/01/2021,06 ACCOMMODATION,CHIEF FINANCIAL OFFICER,SHETLAND CLEANING SERVICES,451339,725.48,430028404
BEIS,Met Office,26/01/2021,06 ACCOMMODATION,CHIEF FINANCIAL OFFICER,SHETLAND CLEANING SERVICES,451413,97200,DE265675123
BEIS,Met Office,26/01/2021,06 ACCOMMODATION,CHIEF FINANCIAL OFFICER,SOUTH WEST WATER LTD,451340,1164.59,236873674
BEIS,Met Office,26/01/2021,06 ACCOMMODATION,CHIEF FINANCIAL OFFICER,SOUTH WEST WATER LTD,451342,1279.81,236873674
BEIS,Met Office,26/01/2021,06 ACCOMMODATION,CHIEF FINANCIAL OFFICER,SOUTH WEST WATER LTD,451415,50,-
BEIS,Met Office,26/01/2021,PLANT AND EQUIPMENT,CHIEF FINANCIAL OFFICER,Stewart Morris Partnership Ltd,451438,18.48,196461180
BEIS,Met Office,26/01/2021,04 CONTRACTORS,CHIEF FINANCIAL OFFICER,WA CONSULTANTS LTD,451317,6778.35,876328977
BEIS,Met Office,26/01/2021,04 CONTRACTORS,CHIEF FINANCIAL OFFICER,WA CONSULTANTS LTD,451471,5900,648857968
BEIS,Met Office,26/01/2021,06 ACCOMMODATION,CHIEF FINANCIAL OFFICER,XEIAD,447476,380,811321091
BEIS,Met Office,26/01/2021,11 SERVICES,MARKETS,Cgi It Uk Limited,448783,54064,232615194
BEIS,Met Office,26/01/2021,11 SERVICES,MARKETS,DJS RESEARCH LIMITED,451444,6180,701022805
BEIS,Met Office,26/01/2021,11 SERVICES,MARKETS,FRANCIS CLARK LLP,451286,1700,166398173
BEIS,Met Office,26/01/2021,04 CONTRACTORS,MARKETS,HAYS SPECIALIST RECRUITMENT LTD,451304,183.08,773695871
BEIS,Met Office,26/01/2021,04 CONTRACTORS,MARKETS,HAYS SPECIALIST RECRUITMENT LTD,451305,488.21,773695871
BEIS,Met Office,26/01/2021,04 CONTRACTORS,MARKETS,HAYS SPECIALIST RECRUITMENT LTD,451424,915.4,773695871
BEIS,Met Office,26/01/2021,11 SERVICES,MARKETS,IBM UNITED KINGDOM LTD,450674,-5458.32,107328000
BEIS,Met Office,26/01/2021,04 CONTRACTORS,MARKETS,JOBSEEKERS RECRUITMENT SERVICES LTD,451277,662.3,130 1297 14
BEIS,Met Office,26/01/2021,04 CONTRACTORS,MARKETS,JOBSEEKERS RECRUITMENT SERVICES LTD,451279,662.3,130 1297 14
BEIS,Met Office,26/01/2021,04 CONTRACTORS,MARKETS,JOBSEEKERS RECRUITMENT SERVICES LTD,451280,813.66,130 1297 14
BEIS,Met Office,26/01/2021,04 CONTRACTORS,MARKETS,JOBSEEKERS RECRUITMENT SERVICES LTD,451450,1008.48,130 1297 14
BEIS,Met Office,26/01/2021,04 CONTRACTORS,MARKETS,JOBSEEKERS RECRUITMENT SERVICES LTD,451452,662.3,130 1297 14
BEIS,Met Office,26/01/2021,04 CONTRACTORS,MARKETS,JOBSEEKERS RECRUITMENT SERVICES LTD,451453,247.15,223283628
BEIS,Met Office,26/01/2021,11 SERVICES,MARKETS,UK CENTRE FOR ECOLOGY & HYDROLOGY (UKCEH),451310,1658.4,172647982
BEIS,Met Office,26/01/2021,04 CONTRACTORS,MARKETS,WA CONSULTANTS LTD,451285,9000,876328977
BEIS,Met Office,26/01/2021,04 CONTRACTORS,OFFICE OF THE CEO,JOBSEEKERS RECRUITMENT SERVICES LTD,451278,662.3,130 1297 14
BEIS,Met Office,26/01/2021,04 CONTRACTORS,OFFICE OF THE CEO,JOBSEEKERS RECRUITMENT SERVICES LTD,451449,662.3,130 1297 14
BEIS,Met Office,26/01/2021,04 CONTRACTORS,OFFICE OF THE CS & TECH,HAYS SPECIALIST RECRUITMENT LTD,451422,817.75,773695871
BEIS,Met Office,26/01/2021,04 CONTRACTORS,OFFICE OF THE CS & TECH,HAYS SPECIALIST RECRUITMENT LTD,451428,817.75,773695871
BEIS,Met Office,26/01/2021,PAYE AND VAT,OTHER,DHL INTERNATIONAL (UK) LTD,451341,11,751812341
BEIS,Met Office,26/01/2021,11 SERVICES,PEOPLE,BW TRAINING LTD,451456,20149.46,380609841
BEIS,Met Office,26/01/2021,11 SERVICES,PEOPLE,HAWK INCENTIVES LTD,450728,-25,238839422
BEIS,Met Office,26/01/2021,11 SERVICES,PEOPLE,HAWK INCENTIVES LTD,450729,21715,238839422
BEIS,Met Office,26/01/2021,11 SERVICES,PEOPLE,HAWK INCENTIVES LTD,451282,14240,238839422
BEIS,Met Office,26/01/2021,11 SERVICES,PEOPLE,HAWK INCENTIVES LTD,451283,712,238839422
BEIS,Met Office,26/01/2021,11 SERVICES,PEOPLE,HAWK INCENTIVES LTD,451283,915.4,773695871
BEIS,Met Office,26/01/2021,04 CONTRACTORS,PEOPLE,HAYS SPECIALIST RECRUITMENT LTD,451420,658.25,773695871
BEIS,Met Office,26/01/2021,04 CONTRACTORS,PEOPLE,HAYS SPECIALIST RECRUITMENT LTD,451421,558.7,773695871
BEIS,Met Office,26/01/2021,04 CONTRACTORS,PEOPLE,HAYS SPECIALIST RECRUITMENT LTD,451423,366.16,773695871
BEIS,Met Office,26/01/2021,04 CONTRACTORS,PEOPLE,HAYS SPECIALIST RECRUITMENT LTD,451425,488.21,773695871
BEIS,Met Office,26/01/2021,04 CONTRACTORS,PEOPLE,HAYS SPECIALIST RECRUITMENT LTD,451426,566.25,773695871
BEIS,Met Office,26/01/2021,04 CONTRACTORS,PEOPLE,HAYS SPECIALIST RECRUITMENT LTD,451429,658.25,773695871
BEIS,Met Office,26/01/2021,04 CONTRACTORS,PEOPLE,HAYS SPECIALIST RECRUITMENT LTD,451430,2390,616099432
BEIS,Met Office,26/01/2021,04 CONTRACTORS,PEOPLE,OUTSOURCE UK LIMITED,451288,6384.75,576118722
BEIS,Met Office,26/01/2021,04 CONTRACTORS,PEOPLE,OUTSOURCE UK LIMITED,451296,5179.5,576118722
BEIS,Met Office,26/01/2021,11 SERVICES,PEOPLE,RIVER TRAINING AND HR,451466,1185,-
BEIS,Met Office,26/01/2021,11 SERVICES,PEOPLE,RIVER TRAINING AND HR,451467,1185,-
BEIS,Met Office,26/01/2021,11 SERVICES,PEOPLE,RIVER TRAINING AND HR,451467,-600.96,859951462
BEIS,Met Office,26/01/2021,11 SERVICES,PEOPLE,SOCIAL & LOCAL,451271,1000,126 9600 12
BEIS,Met Office,26/01/2021,11 SERVICES,PEOPLE,SOCIAL & LOCAL,451272,2758,-
BEIS,Met Office,26/01/2021,11 SERVICES,PEOPLE,SODEXO MOT SOL UK  LTD (CHILDCARE RECEIPTS),451458,49958.02,GB 942 5301 43
BEIS,Met Office,26/01/2021,04 CONTRACTORS,PEOPLE,WA CONSULTANTS LTD,451318,6283.08,876328977
BEIS,Met Office,26/01/2021,04 CONTRACTORS,PEOPLE,WA CONSULTANTS LTD,451470,1392.4,876328977
BEIS,Met Office,26/01/2021,11 SERVICES,PROGRAMMES,Arup,451268,1191.01,314366027
BEIS,Met Office,26/01/2021,11 SERVICES,PROGRAMMES,BAE SYSTEMS APPLIED INTELLIGENCE LIMITED,449441,13200,GB641407169
BEIS,Met Office,26/01/2021,11 SERVICES,PROGRAMMES,BAE SYSTEMS APPLIED INTELLIGENCE LIMITED,450334,19698,GB641407169
BEIS,Met Office,26/01/2021,11 SERVICES,PROGRAMMES,BAE SYSTEMS APPLIED INTELLIGENCE LIMITED,450371,344.69,GB641407169
BEIS,Met Office,26/01/2021,11 SERVICES,PROGRAMMES,BJSS LIMITED,451311,24750,613295452
BEIS,Met Office,26/01/2021,11 SERVICES,PROGRAMMES,BJSS LIMITED,451416,12750,613295452
BEIS,Met Office,26/01/2021,11 SERVICES,PROGRAMMES,CAMBRIDGE ENVIRONMENTAL RESEARCH CONSULTANTS,451301,0,428453933
BEIS,Met Office,26/01/2021,04 CONTRACTORS,PROGRAMMES,JOBSEEKERS RECRUITMENT SERVICES LTD,451281,662.3,130 1297 14
BEIS,Met Office,26/01/2021,04 CONTRACTORS,PROGRAMMES,JOBSEEKERS RECRUITMENT SERVICES LTD,451451,537,130 1297 14
BEIS,Met Office,26/01/2021,04 CONTRACTORS,PROGRAMMES,OUTSOURCE UK LIMITED,451287,4999.95,576118722
BEIS,Met Office,26/01/2021,04 CONTRACTORS,PROGRAMMES,OUTSOURCE UK LIMITED,451292,4050,576118722
BEIS,Met Office,26/01/2021,04 CONTRACTORS,PROGRAMMES,OUTSOURCE UK LIMITED,451293,3375,576118722
BEIS,Met Office,26/01/2021,04 CONTRACTORS,PROGRAMMES,OUTSOURCE UK LIMITED,451295,5100,576118722
BEIS,Met Office,26/01/2021,11 SERVICES,PROGRAMMES,REDACTED PERSONAL DATA,451051,2700,-
BEIS,Met Office,26/01/2021,04 CONTRACTORS,PROGRAMMES,SOLOS CONSULTANTS LTD,451497,11925,812035476
BEIS,Met Office,26/01/2021,04 CONTRACTORS,PROGRAMMES,SOLOS CONSULTANTS LTD,451499,1340,170422048
BEIS,Met Office,26/01/2021,11 SERVICES,PROGRAMMES,UNIVERSITY OF EAST ANGLIA,451035,333.33,595183505
BEIS,Met Office,26/01/2021,11 SERVICES,PROGRAMMES,UNIVERSITY OF EXETER,451243,2109.12,613451470
BEIS,Met Office,26/01/2021,11 SERVICES,PROGRAMMES,University Of Reading,450509,7450,200012659
BEIS,Met Office,26/01/2021,04 CONTRACTORS,PROGRAMMES,WA CONSULTANTS LTD,451316,1215,876328977
BEIS,Met Office,26/01/2021,13 MISCELLANEOUS,SCIENCE,AB MULTIMEDIA LTD,450895,525,849333502
BEIS,Met Office,26/01/2021,13 MISCELLANEOUS,SCIENCE,AB MULTIMEDIA LTD,451098,565,166969348
BEIS,Met Office,26/01/2021,07 EQUIPMENT,SCIENCE,JONATHAN LONG HPT SERVICES LTD,451500,9148.13,N/A
BEIS,Met Office,26/01/2021,11 SERVICES,SCIENCE,KALEIDER LTD,450819,702,627403551
BEIS,Met Office,26/01/2021,07 EQUIPMENT,SCIENCE,METAL FINISHING LTD,451465,100,GB675903894
BEIS,Met Office,26/01/2021,07 EQUIPMENT,SCIENCE,METAL FINISHING LTD,451465,203.5,GB 275 5061 96
BEIS,Met Office,26/01/2021,13 MISCELLANEOUS,SCIENCE,UKRI,451477,58720.54,524371168
BEIS,Met Office,26/01/2021,11 SERVICES,SCIENCE,University Of Leeds,451313,100000,200012659
BEIS,Met Office,26/01/2021,03 STAFF COSTS T&S,SERVICES,AIRPORT CAR RENTALS LTD,451468,4918.08,745091237
BEIS,Met Office,26/01/2021,STOCK,SERVICES,Campbell Scientific Ltd,450522,0,428453933
BEIS,Met Office,26/01/2021,STOCK,SERVICES,Campbell Scientific Ltd,450522,5067,428453933
BEIS,Met Office,26/01/2021,TRADE CREDITORS,SERVICES,Campbell Scientific Ltd,450522,26775,428453933
BEIS,Met Office,26/01/2021,TRADE CREDITORS,SERVICES,Campbell Scientific Ltd,450522,184,428453933
BEIS,Met Office,26/01/2021,11 SERVICES,SERVICES,Campbell Scientific Ltd,450522,248.4,428453933
BEIS,Met Office,26/01/2021,13 MISCELLANEOUS,SERVICES,DBS FINANCE RECEIPTS CTS,451476,4848,888805068
BEIS,Met Office,26/01/2021,INFORMATION TECHNOLOGY,SERVICES,DOT SOFTWARE LTD,451490,856,701022805
BEIS,Met Office,26/01/2021,11 SERVICES,SERVICES,DOT SOFTWARE LTD,451490,5520,701022805
BEIS,Met Office,26/01/2021,11 SERVICES,SERVICES,DOT SOFTWARE LTD,451490,21171,GB432995915
BEIS,Met Office,26/01/2021,STOCK,SERVICES,HEASON TECHNOLOGY LTD,450720,4497,945605411
BEIS,Met Office,26/01/2021,TRADE CREDITORS,SERVICES,HEASON TECHNOLOGY LTD,450720,35,945605411
BEIS,Met Office,26/01/2021,11 SERVICES,SERVICES,HEASON TECHNOLOGY LTD,450720,737000,314149679
BEIS,Met Office,26/01/2021,11 SERVICES,SERVICES,King'S College London,451504,29700,791788859
BEIS,Met Office,26/01/2021,11 SERVICES,SERVICES,Landmark Information Group Ltd,451454,52615.48,634509735
BEIS,Met Office,26/01/2021,11 SERVICES,SERVICES,Landmark Information Group Ltd,451455,5390,NL0047.56.174.B
BEIS,Met Office,26/01/2021,10 EQUIPMENT MAINTENANCE,SERVICES,OVARRO TS LTD,451443,250,-
BEIS,Met Office,26/01/2021,11 SERVICES,SERVICES,ROCKSURE SYSTEMS LTD T/A PEOPLESAFE,446362,1728,859951462
BEIS,Met Office,26/01/2021,11 SERVICES,SERVICES,ROCKSURE SYSTEMS LTD T/A PEOPLESAFE,451487,4165,924964394
BEIS,Met Office,26/01/2021,PLANT AND EQUIPMENT,SERVICES,XYLEM ANALYTICS UK LIMITED,451469,1440,673900720
BEIS,Met Office,26/01/2021,11 SERVICES,TECHNOLOGY AND CIO,BAE SYSTEMS APPLIED INTELLIGENCE LIMITED,446938,10009.24,GB641407169
BEIS,Met Office,26/01/2021,11 SERVICES,TECHNOLOGY AND CIO,BAE SYSTEMS APPLIED INTELLIGENCE LIMITED,449016,11220,GB641407169
BEIS,Met Office,26/01/2021,11 SERVICES,TECHNOLOGY AND CIO,BAE SYSTEMS APPLIED INTELLIGENCE LIMITED,449368,11361.84,GB641407169
BEIS,Met Office,26/01/2021,11 SERVICES,TECHNOLOGY AND CIO,BAE SYSTEMS APPLIED INTELLIGENCE LIMITED,449415,48837.31,GB641407169
BEIS,Met Office,26/01/2021,11 SERVICES,TECHNOLOGY AND CIO,BAE SYSTEMS APPLIED INTELLIGENCE LIMITED,450330,10279.76,GB641407169
BEIS,Met Office,26/01/2021,11 SERVICES,TECHNOLOGY AND CIO,BAE SYSTEMS APPLIED INTELLIGENCE LIMITED,450331,12540,GB641407169
BEIS,Met Office,26/01/2021,11 SERVICES,TECHNOLOGY AND CIO,CLOUDREACH EUROPE LIMITED,451258,6924.31,978187168
BEIS,Met Office,26/01/2021,11 SERVICES,TECHNOLOGY AND CIO,CLOUDREACH EUROPE LIMITED,451294,7300,978187168
BEIS,Met Office,26/01/2021,11 SERVICES,TECHNOLOGY AND CIO,CLOUDREACH EUROPE LIMITED,451302,8009.91,978187168
BEIS,Met Office,26/01/2021,11 SERVICES,TECHNOLOGY AND CIO,CLOUDREACH EUROPE LIMITED,451503,5657.5,305803330
BEIS,Met Office,26/01/2021,INFORMATION TECHNOLOGY,TECHNOLOGY AND CIO,COMPUTACENTER (UK) LTD,444884,22380,490334648
BEIS,Met Office,26/01/2021,INFORMATION TECHNOLOGY,TECHNOLOGY AND CIO,COMPUTACENTER (UK) LTD,451478,14190,490334648
BEIS,Met Office,26/01/2021,INFORMATION TECHNOLOGY,TECHNOLOGY AND CIO,COMPUTACENTER (UK) LTD,451478,13880,490334648
BEIS,Met Office,26/01/2021,INFORMATION TECHNOLOGY,TECHNOLOGY AND CIO,COMPUTACENTER (UK) LTD,451478,8316,490334648
BEIS,Met Office,26/01/2021,INFORMATION TECHNOLOGY,TECHNOLOGY AND CIO,COMPUTACENTER (UK) LTD,451478,10700,490334648
BEIS,Met Office,26/01/2021,08 SOFTWARE LICENCES,TECHNOLOGY AND CIO,COMPUTACENTER (UK) LTD,451479,15635.61,577704800
BEIS,Met Office,26/01/2021,11 SERVICES,TECHNOLOGY AND CIO,DHL INTERNATIONAL (UK) LTD,451341,2343.24,GB 556 1971 19
BEIS,Met Office,26/01/2021,04 CONTRACTORS,TECHNOLOGY AND CIO,HAYS SPECIALIST RECRUITMENT LTD,451427,558.7,773695871
BEIS,Met Office,26/01/2021,10 EQUIPMENT MAINTENANCE,TECHNOLOGY AND CIO,Hewlett Packard Ltd,450393,100.51,945667772
BEIS,Met Office,26/01/2021,11 SERVICES,TECHNOLOGY AND CIO,IBM UNITED KINGDOM LTD,450673,6184.16,107328000
BEIS,Met Office,26/01/2021,11 SERVICES,TECHNOLOGY AND CIO,IBM UNITED KINGDOM LTD,451505,1852.32,766144223
BEIS,Met Office,26/01/2021,04 CONTRACTORS,TECHNOLOGY AND CIO,OUTSOURCE UK LIMITED,449737,8292.24,576118722
BEIS,Met Office,26/01/2021,04 CONTRACTORS,TECHNOLOGY AND CIO,OUTSOURCE UK LIMITED,451273,7874.34,576118722
BEIS,Met Office,26/01/2021,04 CONTRACTORS,TECHNOLOGY AND CIO,OUTSOURCE UK LIMITED,451274,-11156,576118722
BEIS,Met Office,26/01/2021,04 CONTRACTORS,TECHNOLOGY AND CIO,OUTSOURCE UK LIMITED,451275,10641,576118722
BEIS,Met Office,26/01/2021,04 CONTRACTORS,TECHNOLOGY AND CIO,OUTSOURCE UK LIMITED,451276,7076.85,576118722
BEIS,Met Office,26/01/2021,04 CONTRACTORS,TECHNOLOGY AND CIO,OUTSOURCE UK LIMITED,451289,3804.36,576118722
BEIS,Met Office,26/01/2021,04 CONTRACTORS,TECHNOLOGY AND CIO,OUTSOURCE UK LIMITED,451290,7836.13,576118722
BEIS,Met Office,26/01/2021,04 CONTRACTORS,TECHNOLOGY AND CIO,OUTSOURCE UK LIMITED,451291,4946.2,576118722
BEIS,Met Office,26/01/2021,04 CONTRACTORS,TECHNOLOGY AND CIO,OUTSOURCE UK LIMITED,451297,5569.9,576118722
BEIS,Met Office,26/01/2021,04 CONTRACTORS,TECHNOLOGY AND CIO,OUTSOURCE UK LIMITED,451298,4676.88,576118722
BEIS,Met Office,26/01/2021,04 CONTRACTORS,TECHNOLOGY AND CIO,OUTSOURCE UK LIMITED,451299,8255.44,576118722
BEIS,Met Office,26/01/2021,04 CONTRACTORS,TECHNOLOGY AND CIO,OUTSOURCE UK LIMITED,451436,17364.75,648280518
BEIS,Met Office,26/01/2021,04 CONTRACTORS,TECHNOLOGY AND CIO,QUALSERV CONSULTING LTD,450793,8100,719067718
BEIS,Met Office,26/01/2021,08 SOFTWARE LICENCES,TECHNOLOGY AND CIO,SOFTWAREONE,451457,2520,752 1253 57
BEIS,Met Office,26/01/2021,04 CONTRACTORS,TECHNOLOGY AND CIO,SOLOS CONSULTANTS LTD,451498,15600,812035476
BEIS,Met Office,26/01/2021,04 CONTRACTORS,TECHNOLOGY AND CIO,WA CONSULTANTS LTD,451265,2430,876328977
BEIS,Met Office,26/01/2021,04 CONTRACTORS,TECHNOLOGY AND CIO,WA CONSULTANTS LTD,451309,6650,876328977
BEIS,Met Office,26/01/2021,04 CONTRACTORS,TECHNOLOGY AND CIO,WA CONSULTANTS LTD,451315,13500,876328977
BEIS,Met Office,26/01/2021,04 CONTRACTORS,TECHNOLOGY AND CIO,WA CONSULTANTS LTD,451319,8567.04,876328977
BEIS,Met Office,27/01/2021,11 SERVICES,CHIEF FINANCIAL OFFICER,DBS FINANCE RECEIPTS CTS,22252,173.27,888805068
BEIS,Met Office,27/01/2021,11 SERVICES,CHIEF FINANCIAL OFFICER,DBS FINANCE RECEIPTS CTS,22253,14115.17,888805068
BEIS,Met Office,27/01/2021,06 ACCOMMODATION,CHIEF FINANCIAL OFFICER,JAMES & MARCIA BENJAMIN,450597,1146,NOTVATREG
BEIS,Met Office,27/01/2021,11 SERVICES,MARKETS,"IBL SOFTWARE ENGINEERING, SPOL S.R.O.",451018,12309.7,107328000
BEIS,Met Office,27/01/2021,12 INTERNATIONAL,MARKETS,MACITECHSY SOLUTIONS,450999,53.21,3291912
BEIS,Met Office,27/01/2021,PAYE AND VAT,OTHER,HMRC,451523,31829.91,GB123371543
BEIS,Met Office,27/01/2021,11 SERVICES,PEOPLE,PLURALSIGHT,449366,1915.44,EU826020045
BEIS,Met Office,27/01/2021,11 SERVICES,PEOPLE,PLURALSIGHT,450250,931.44,EU826020045
BEIS,Met Office,27/01/2021,11 SERVICES,PEOPLE,PLURALSIGHT,451033,21925,278743455
BEIS,Met Office,27/01/2021,08 SOFTWARE LICENCES,PROGRAMMES,"IBL SOFTWARE ENGINEERING, SPOL S.R.O.",450263,692.93,SK2020241883
BEIS,Met Office,27/01/2021,08 SOFTWARE LICENCES,PROGRAMMES,"IBL SOFTWARE ENGINEERING, SPOL S.R.O.",450263,8406.73,SK2020241883
BEIS,Met Office,27/01/2021,11 SERVICES,SERVICES,"EUTELSAT MADERIA, UNIPESSOAL LDA",22230,6362.25,GB798572653
BEIS,Met Office,27/01/2021,PLANT AND EQUIPMENT,SERVICES,LANKHORST ROPES,451058,85.6,820219467
BEIS,Met Office,27/01/2021,STOCK,SERVICES,VAISALA OYJ,22200,6739.52,FI01244162
BEIS,Met Office,27/01/2021,TRADE CREDITORS,SERVICES,VAISALA OYJ,22200,18229,591819014
BEIS,Met Office,27/01/2021,08 SOFTWARE LICENCES,TECHNOLOGY AND CIO,GITHUB INC,10013,45.21,-
BEIS,Met Office,27/01/2021,08 SOFTWARE LICENCES,TECHNOLOGY AND CIO,HARMAN CONNECTED SERVICES,10080,-50,238839422
BEIS,Met Office,27/01/2021,11 SERVICES,TECHNOLOGY AND CIO,SIGNAVIO GMBH,448752,600,126 9600 12
BEIS,Met Office,28/01/2021,11 SERVICES,CHIEF FINANCIAL OFFICER,BT PLC,451545,395,-
BEIS,Met Office,28/01/2021,06 ACCOMMODATION,CHIEF FINANCIAL OFFICER,EDF ENERGY CUSTOMERS PLC,451522,56.12,4736919B
BEIS,Met Office,28/01/2021,03 STAFF COSTS T&S,CHIEF FINANCIAL OFFICER,ENTERPRISE RENT A CAR UK LTD,451659,6846,915967778
BEIS,Met Office,28/01/2021,06 ACCOMMODATION,CHIEF FINANCIAL OFFICER,MORAY COUNCIL,451519,736.08,577815493
BEIS,Met Office,28/01/2021,06 ACCOMMODATION,CHIEF FINANCIAL OFFICER,National Oceanography Centre,451540,2028,4.40379E+11
BEIS,Met Office,28/01/2021,13 MISCELLANEOUS,CHIEF FINANCIAL OFFICER,NORSCOTT VENDING SERVICES LTD,451442,19461.39,GB238034379
BEIS,Met Office,28/01/2021,06 ACCOMMODATION,CHIEF FINANCIAL OFFICER,OUR LADY OF BETHLEHEM ABBEY,451672,11156,576118722
BEIS,Met Office,28/01/2021,06 ACCOMMODATION,CHIEF FINANCIAL OFFICER,POWER NI ENERGY LTD,451534,9650,-
BEIS,Met Office,28/01/2021,06 ACCOMMODATION,CHIEF FINANCIAL OFFICER,REDACTED PERSONAL DATA,451668,2253.65,-
BEIS,Met Office,28/01/2021,06 ACCOMMODATION,CHIEF FINANCIAL OFFICER,REDACTED PERSONAL DATA,451670,7020.15,619055736
BEIS,Met Office,28/01/2021,06 ACCOMMODATION,CHIEF FINANCIAL OFFICER,REDACTED PERSONAL DATA,451676,3600,835515525
BEIS,Met Office,28/01/2021,06 ACCOMMODATION,CHIEF FINANCIAL OFFICER,RIVER RIDGE,451544,790,-
BEIS,Met Office,28/01/2021,06 ACCOMMODATION,CHIEF FINANCIAL OFFICER,SENATOR INTERNATIONAL LTD,451492,22.23,486985565
BEIS,Met Office,28/01/2021,06 ACCOMMODATION,CHIEF FINANCIAL OFFICER,Severn Trent Water Ltd,451546,275,430028404
BEIS,Met Office,28/01/2021,06 ACCOMMODATION,CHIEF FINANCIAL OFFICER,SOUTHERN EDUCATION & LIBRARY BOARD,451669,700,840156451
BEIS,Met Office,28/01/2021,11 SERVICES,CHIEF FINANCIAL OFFICER,SURE SOUTH ATLANTIC LTD,451537,1257.05,30005
BEIS,Met Office,28/01/2021,11 SERVICES,CHIEF FINANCIAL OFFICER,SURE SOUTH ATLANTIC LTD (ST HELENA),451538,1010.66,769332401
BEIS,Met Office,28/01/2021,06 ACCOMMODATION,CHIEF FINANCIAL OFFICER,V & M MORRIS AND SON,451674,0,FI01244162
BEIS,Met Office,28/01/2021,12 INTERNATIONAL,MARKETS,APPLIED SATELLITE TECHNOLOGY SYSTEMS LTD,451525,282.48,720108683
BEIS,Met Office,28/01/2021,11 SERVICES,MARKETS,CACI LTD,451675,799.95,380609841
BEIS,Met Office,28/01/2021,11 SERVICES,MARKETS,CACI LTD,451675,19229.38,380609841
BEIS,Met Office,28/01/2021,11 SERVICES,MARKETS,CACI LTD,451675,49.18,207610984
BEIS,Met Office,28/01/2021,12 INTERNATIONAL,MARKETS,CROWN AGENTS BANK,451543,-791.67,850403556
BEIS,Met Office,28/01/2021,11 SERVICES,MARKETS,DBS FINANCE RECEIPTS CTS,451437,30,888805068
BEIS,Met Office,28/01/2021,13 MISCELLANEOUS,MARKETS,PARLIAMENTARY & SCIENTIFIC COMMITTEE,451520,385,-
BEIS,Met Office,28/01/2021,13 MISCELLANEOUS,MARKETS,PARLIAMENTARY & SCIENTIFIC COMMITTEE,451526,1908.82,EU826020045
BEIS,Met Office,28/01/2021,06 ACCOMMODATION,MARKETS,R C PERRY,451673,110.48,DE123377395
BEIS,Met Office,28/01/2021,11 SERVICES,MARKETS,SOCIAL SENSING LTD,451461,433.84,733644335
BEIS,Met Office,28/01/2021,11 SERVICES,MARKETS,UNIVERSITY OF SUSSEX,451464,750,-
BEIS,Met Office,28/01/2021,11 SERVICES,MARKETS,WALNUT UNLIMITED LIMITED,451431,221.47,815974302
BEIS,Met Office,28/01/2021,04 CONTRACTORS,PROGRAMMES,BJSS LIMITED,451433,8940.98,226556555
BEIS,Met Office,28/01/2021,13 MISCELLANEOUS,PROGRAMMES,UNIVERSITY OF EXETER,451036,44100.4,142047795
BEIS,Met Office,28/01/2021,13 MISCELLANEOUS,SCIENCE,University Of Reading,451655,2775.5,692712320
BEIS,Met Office,28/01/2021,11 SERVICES,SERVICES,APPLIED SATELLITE TECHNOLOGY SYSTEMS LTD,451527,128.21,720108683
BEIS,Met Office,28/01/2021,11 SERVICES,SERVICES,APPLIED SATELLITE TECHNOLOGY SYSTEMS LTD,451530,56.07,720108683
BEIS,Met Office,28/01/2021,11 SERVICES,SERVICES,APPLIED SATELLITE TECHNOLOGY SYSTEMS LTD,451531,413.63,720108683
BEIS,Met Office,28/01/2021,11 SERVICES,SERVICES,APPLIED SATELLITE TECHNOLOGY SYSTEMS LTD,451532,115.6,720108683
BEIS,Met Office,28/01/2021,11 SERVICES,SERVICES,APPLIED SATELLITE TECHNOLOGY SYSTEMS LTD,451547,19046,524461265
BEIS,Met Office,28/01/2021,STOCK,SERVICES,Campbell Scientific Ltd,451439,2454.3,428453933
BEIS,Met Office,28/01/2021,TRADE CREDITORS,SERVICES,Campbell Scientific Ltd,451439,17,428453933
BEIS,Met Office,28/01/2021,11 SERVICES,SERVICES,Campbell Scientific Ltd,451439,519.59,523797128
BEIS,Met Office,28/01/2021,03 STAFF COSTS T&S,SERVICES,CARTUS LTD,451521,1301.87,978169262
BEIS,Met Office,28/01/2021,03 STAFF COSTS T&S,SERVICES,DBS FINANCE RECEIPTS CTS,451624,109.38,10156145J
BEIS,Met Office,28/01/2021,STOCK,SERVICES,H & B SENSORS LTD,451482,6984,321828666
BEIS,Met Office,28/01/2021,TRADE CREDITORS,SERVICES,H & B SENSORS LTD,451482,27,321828666
BEIS,Met Office,28/01/2021,11 SERVICES,SERVICES,H & B SENSORS LTD,451482,375,486985565
BEIS,Met Office,28/01/2021,11 SERVICES,SERVICES,MERKLE UK THREE LTD T/A MERKLE PERISCOPIX,449965,8315,843316243
BEIS,Met Office,28/01/2021,11 SERVICES,SERVICES,Public Health England,451665,680,888805068
BEIS,Met Office,28/01/2021,03 STAFF COSTS T&S,SERVICES,VOLKSWAGEN GROUP LEASING,451481,7672.37,876328977
BEIS,Met Office,28/01/2021,10 EQUIPMENT MAINTENANCE,SERVICES,YOUNG CALIBRATION LIMITED,451680,10,673900720
BEIS,Met Office,28/01/2021,11 SERVICES,SERVICES,YOUNG CALIBRATION LIMITED,451680,,
BEIS,Met Office,28/01/2021,08 SOFTWARE LICENCES,TECHNOLOGY AND CIO,BOXXE,451662,352,734245248
BEIS,Met Office,28/01/2021,08 SOFTWARE LICENCES,TECHNOLOGY AND CIO,BOXXE,451662,15120.44,GB 238 767421
BEIS,Met Office,28/01/2021,11 SERVICES,TECHNOLOGY AND CIO,LRQA LTD,451494,1384.64,-
BEIS,Met Office,28/01/2021,11 SERVICES,TECHNOLOGY AND CIO,SSE CONTRACTING LTD,451542,540,564553916
